BODY,BODY NAME,DATE,TRANSACTION NUMBER,THEIR REF,CATEGORY,AMOUNT,SUPPLIER NAME,SUPPLIER CODE,EXPENSE AREA,EXPENSE TYPE,EXPENSE CODE
http://statistics.data.gov.uk/id/local-authority/12UE,Huntingdonshire District Council,08/10/2015,175802,6579,5,264,Air Monitors Ltd,CR480691,Air Quality,Equipment Maintenance,511
http://statistics.data.gov.uk/id/local-authority/12UE,Huntingdonshire District Council,08/10/2015,175810,1146,5,1500,Wood Green Animal Shelters,CR019139,Animal Welfare,Contribution (Paid Out),810
http://statistics.data.gov.uk/id/local-authority/12UE,Huntingdonshire District Council,08/10/2015,176359,1272,5,1700,Wood Green Animal Shelters,CR019139,Animal Welfare,Contribution (Paid Out),810
http://statistics.data.gov.uk/id/local-authority/12UE,Huntingdonshire District Council,15/10/2015,176741,1208495292,5,12,Orange Airtime,CR455799,Animal Welfare,Telephone &Mobile Phonecharges,240
http://statistics.data.gov.uk/id/local-authority/12UE,Huntingdonshire District Council,15/10/2015,587880,4BC342655,6,2400,North Kesteven District Council,CR480804,Building Control Other,Subcontractors,777
http://statistics.data.gov.uk/id/local-authority/12UE,Huntingdonshire District Council,15/10/2015,587878,4BC342656,6,600,North Kesteven District Council,CR480804,Building Control Other,Subcontractors,777
http://statistics.data.gov.uk/id/local-authority/12UE,Huntingdonshire District Council,29/10/2015,177438,11458902300,5,317.39,E-On Energy,CR416430,Bus Shelters,Electricity,420
http://statistics.data.gov.uk/id/local-authority/12UE,Huntingdonshire District Council,29/10/2015,177166,2015/166,5,695.04,Primesight  Ltd,CR132710,Bus Shelters,Sitework,359
http://statistics.data.gov.uk/id/local-authority/12UE,Huntingdonshire District Council,15/10/2015,176432,GFL1732HDC,5,696,G Ferrara Ltd,CR478949,Bus Shelters,Building Cleaning,440
http://statistics.data.gov.uk/id/local-authority/12UE,Huntingdonshire District Council,22/10/2015,177069,GFL1745HDC,5,606,G Ferrara Ltd,CR478949,Bus Shelters,Building Cleaning,440
http://statistics.data.gov.uk/id/local-authority/12UE,Huntingdonshire District Council,22/10/2015,587809,847,1,344.18,St Ives Town Council,CR000701,Bus Stations,Building Cleaning,440
http://statistics.data.gov.uk/id/local-authority/12UE,Huntingdonshire District Council,08/10/2015,175616,55118,5,1112.96,Beebys Limited,CR415822,Bus Stations,Building Cleaning,440
http://statistics.data.gov.uk/id/local-authority/12UE,Huntingdonshire District Council,29/10/2015,177269,INV35925,5,436.8,Shopsafe Ltd,CR411150,Bus Stations,Rent,410
http://statistics.data.gov.uk/id/local-authority/12UE,Huntingdonshire District Council,22/10/2015,177971,15344,5,295,Bigprinting,CR416383,Business & Enterprise Support,Equipment Maintenance,511
http://statistics.data.gov.uk/id/local-authority/12UE,Huntingdonshire District Council,22/10/2015,177971,15344,5,204,Bigprinting,CR416383,Business & Enterprise Support,Equipment Maintenance,511
http://statistics.data.gov.uk/id/local-authority/12UE,Huntingdonshire District Council,15/10/2015,176741,1208495292,5,19.2,Orange Airtime,CR455799,Business & Enterprise Support,Telephone &Mobile Phonecharges,240
http://statistics.data.gov.uk/id/local-authority/12UE,Huntingdonshire District Council,22/10/2015,177304,4128,5,1108.8,Access Hire And Hydraulics,CR422526,C C T V,Equipment Maintenance,511
http://statistics.data.gov.uk/id/local-authority/12UE,Huntingdonshire District Council,01/10/2015,176864,22659,5,334.8,Street Process Colour Ltd,CR422705,C C T V,Paper,562
http://statistics.data.gov.uk/id/local-authority/12UE,Huntingdonshire District Council,01/10/2015,176126,30234,5,1203.79,Storacall Voice Systems,CR422592,C C T V,Transmission Lines Rental,767
http://statistics.data.gov.uk/id/local-authority/12UE,Huntingdonshire District Council,15/10/2015,176741,1208495292,5,43.2,Orange Airtime,CR455799,C C T V,Telephone &Mobile Phonecharges,240
http://statistics.data.gov.uk/id/local-authority/12UE,Huntingdonshire District Council,08/10/2015,177098,11398240710,5,1064.02,E-On Energy,CR416430,C C T V,Electricity,420
http://statistics.data.gov.uk/id/local-authority/12UE,Huntingdonshire District Council,15/10/2015,173613,11398240710,5,966.73,E-On Energy,CR416430,C C T V,Electricity,420
http://statistics.data.gov.uk/id/local-authority/12UE,Huntingdonshire District Council,08/10/2015,177259,923469-057A,5,631.3,Virgin Media Business/Cpsn,CR455148,C C T V,I T Line Rental,248
http://statistics.data.gov.uk/id/local-authority/12UE,Huntingdonshire District Council,22/10/2015,177266,923469-058A,5,631.3,Virgin Media Business/Cpsn,CR455148,C C T V,I T Line Rental,248
http://statistics.data.gov.uk/id/local-authority/12UE,Huntingdonshire District Council,01/10/2015,176138,INV1597017,5,294.58,Interaction Recruitment Plc,CR007892,C C T V,Hired Staff,100
http://statistics.data.gov.uk/id/local-authority/12UE,Huntingdonshire District Council,08/10/2015,176800,INV1599033,5,434.11,Interaction Recruitment Plc,CR007892,C C T V,Hired Staff,100
http://statistics.data.gov.uk/id/local-authority/12UE,Huntingdonshire District Council,15/10/2015,177071,INV1601219,5,325.58,Interaction Recruitment Plc,CR007892,C C T V,Hired Staff,100
http://statistics.data.gov.uk/id/local-authority/12UE,Huntingdonshire District Council,22/10/2015,177306,INV1603271,5,325.58,Interaction Recruitment Plc,CR007892,C C T V,Hired Staff,100
http://statistics.data.gov.uk/id/local-authority/12UE,Huntingdonshire District Council,29/10/2015,177486,INV1605147,5,325.58,Interaction Recruitment Plc,CR007892,C C T V,Hired Staff,100
http://statistics.data.gov.uk/id/local-authority/12UE,Huntingdonshire District Council,08/10/2015,176133,SIN077951,5,7300.18,Quadrant Security Group,CR027775,C C T V,Equipment Maintenance,511
http://statistics.data.gov.uk/id/local-authority/12UE,Huntingdonshire District Council,29/10/2015,177720,15789,5,3425.68,Khipu Networks Ltd,CR482348,C C T V Equipment Capital,Network Hardware,205
http://statistics.data.gov.uk/id/local-authority/12UE,Huntingdonshire District Council,29/10/2015,177720,15789,5,546.79,Khipu Networks Ltd,CR482348,C C T V Equipment Capital,Network Hardware,205
http://statistics.data.gov.uk/id/local-authority/12UE,Huntingdonshire District Council,15/10/2015,177276,I664323,5,535.44,Comtec,CR422160,C C T V Equipment Capital,Network Hardware,205
http://statistics.data.gov.uk/id/local-authority/12UE,Huntingdonshire District Council,15/10/2015,177276,I664323,5,138.96,Comtec,CR422160,C C T V Equipment Capital,Network Hardware,205
http://statistics.data.gov.uk/id/local-authority/12UE,Huntingdonshire District Council,15/10/2015,177273,OP/I761530,5,1779.08,Phoenix Software Ltd,CR031918,C C T V Equipment Capital,Software,206
http://statistics.data.gov.uk/id/local-authority/12UE,Huntingdonshire District Council,22/10/2015,176507,SINV00076052,5,431.64,Bist,CR422733,C C T V Equipment Capital,Software,206
http://statistics.data.gov.uk/id/local-authority/12UE,Huntingdonshire District Council,01/10/2015,176032,10770,5,325.2,Lightning Recruitment,CR028184,Call Centre,Hired Staff,100
http://statistics.data.gov.uk/id/local-authority/12UE,Huntingdonshire District Council,08/10/2015,176275,10811,5,325.2,Lightning Recruitment,CR028184,Call Centre,Hired Staff,100
http://statistics.data.gov.uk/id/local-authority/12UE,Huntingdonshire District Council,15/10/2015,176490,10860,5,325.2,Lightning Recruitment,CR028184,Call Centre,Hired Staff,100
http://statistics.data.gov.uk/id/local-authority/12UE,Huntingdonshire District Council,22/10/2015,176881,10907,5,325.2,Lightning Recruitment,CR028184,Call Centre,Hired Staff,100
http://statistics.data.gov.uk/id/local-authority/12UE,Huntingdonshire District Council,29/10/2015,177211,10952,5,325.2,Lightning Recruitment,CR028184,Call Centre,Hired Staff,100
http://statistics.data.gov.uk/id/local-authority/12UE,Huntingdonshire District Council,22/10/2015,177172,10642844,5,5365.75,Cambridgeshire County Council,CR477465,Call Centre,Rent,410
http://statistics.data.gov.uk/id/local-authority/12UE,Huntingdonshire District Council,22/10/2015,177172,10642844,5,4327.25,Cambridgeshire County Council,CR477465,Call Centre,Service Charges,412
http://statistics.data.gov.uk/id/local-authority/12UE,Huntingdonshire District Council,15/10/2015,176741,1208495292,5,12,Orange Airtime,CR455799,Call Centre,Telephone &Mobile Phonecharges,240
http://statistics.data.gov.uk/id/local-authority/12UE,Huntingdonshire District Council,15/10/2015,175461,JBC/27296/4663/,5,317.95,J Breheny Contractors Ltd,CR000314,Car Parks Capital,Sitework,359
http://statistics.data.gov.uk/id/local-authority/12UE,Huntingdonshire District Council,22/10/2015,178096,309153,5,935.36,Venn Group Recruitment,CR415403,Central Services M Us,Hired Staff,100
http://statistics.data.gov.uk/id/local-authority/12UE,Huntingdonshire District Council,22/10/2015,178091,310996,5,592.48,Venn Group Recruitment,CR415403,Central Services M Us,Hired Staff,100
http://statistics.data.gov.uk/id/local-authority/12UE,Huntingdonshire District Council,22/10/2015,178098,3096152,5,788.7,Venn Group Recruitment,CR415403,Central Services M Us,Hired Staff,100
http://statistics.data.gov.uk/id/local-authority/12UE,Huntingdonshire District Council,22/10/2015,178095,3098367,5,803.26,Venn Group Recruitment,CR415403,Central Services M Us,Hired Staff,100
http://statistics.data.gov.uk/id/local-authority/12UE,Huntingdonshire District Council,22/10/2015,178093,3098368,5,935.36,Venn Group Recruitment,CR415403,Central Services M Us,Hired Staff,100
http://statistics.data.gov.uk/id/local-authority/12UE,Huntingdonshire District Council,22/10/2015,178092,3100777,5,809.15,Venn Group Recruitment,CR415403,Central Services M Us,Hired Staff,100
http://statistics.data.gov.uk/id/local-authority/12UE,Huntingdonshire District Council,22/10/2015,178090,3100778,5,610.02,Venn Group Recruitment,CR415403,Central Services M Us,Hired Staff,100
http://statistics.data.gov.uk/id/local-authority/12UE,Huntingdonshire District Council,15/10/2015,176710,3102997,5,894.7,Venn Group Recruitment,CR415403,Central Services M Us,Hired Staff,100
http://statistics.data.gov.uk/id/local-authority/12UE,Huntingdonshire District Council,22/10/2015,176701,3105247,5,817.82,Venn Group Recruitment,CR415403,Central Services M Us,Hired Staff,100
http://statistics.data.gov.uk/id/local-authority/12UE,Huntingdonshire District Council,22/10/2015,176699,3105248,5,813.36,Venn Group Recruitment,CR415403,Central Services M Us,Hired Staff,100
http://statistics.data.gov.uk/id/local-authority/12UE,Huntingdonshire District Council,22/10/2015,177059,3107595,5,809.15,Venn Group Recruitment,CR415403,Central Services M Us,Hired Staff,100
http://statistics.data.gov.uk/id/local-authority/12UE,Huntingdonshire District Council,22/10/2015,177058,3107596,5,935.36,Venn Group Recruitment,CR415403,Central Services M Us,Hired Staff,100
http://statistics.data.gov.uk/id/local-authority/12UE,Huntingdonshire District Council,22/10/2015,177551,3110016,5,772.69,Venn Group Recruitment,CR415403,Central Services M Us,Hired Staff,100
http://statistics.data.gov.uk/id/local-authority/12UE,Huntingdonshire District Council,15/10/2015,176741,1208495292,5,12,Orange Airtime,CR455799,Central Services M Us,Telephone &Mobile Phonecharges,240
http://statistics.data.gov.uk/id/local-authority/12UE,Huntingdonshire District Council,20/10/2015,176533,1298,5,1532.4,Iese,CR422759,Chief Executive & Comt,Consultants,711
http://statistics.data.gov.uk/id/local-authority/12UE,Huntingdonshire District Council,20/10/2015,177970,1298,5,-1532.4,Iese,CR422759,Chief Executive & Comt,Consultants,711
http://statistics.data.gov.uk/id/local-authority/12UE,Huntingdonshire District Council,01/10/2015,175815,9169273,6,5250,East Of England Lga,CR422620,Chief Executive & Comt,Consultants,711
http://statistics.data.gov.uk/id/local-authority/12UE,Huntingdonshire District Council,01/10/2015,175644,9169276,6,750,East Of England Lga,CR422620,Chief Executive & Comt,Consultants,711
http://statistics.data.gov.uk/id/local-authority/12UE,Huntingdonshire District Council,01/10/2015,175422,9169281,6,3024,East Of England Lga,CR422620,Chief Executive & Comt,Consultants,711
http://statistics.data.gov.uk/id/local-authority/12UE,Huntingdonshire District Council,15/10/2015,176300,9169672,6,7392,East Of England Lga,CR422620,Chief Executive & Comt,Consultants,711
http://statistics.data.gov.uk/id/local-authority/12UE,Huntingdonshire District Council,29/10/2015,177084,9170958,6,9828,East Of England Lga,CR422620,Chief Executive & Comt,Consultants,711
http://statistics.data.gov.uk/id/local-authority/12UE,Huntingdonshire District Council,29/10/2015,177654,9170960,6,9504,East Of England Lga,CR422620,Chief Executive & Comt,Consultants,711
http://statistics.data.gov.uk/id/local-authority/12UE,Huntingdonshire District Council,26/10/2015,178083,16010137,5,1135000,Cambridgeshire County Council,CR017440,Chief Executive & Comt,Pensions,P16
http://statistics.data.gov.uk/id/local-authority/12UE,Huntingdonshire District Council,01/10/2015,176374,55279818,5,259.2,Archant Herts & Cambs,CR415764,Chief Executive & Comt,Advertising/Promoting Services,255
http://statistics.data.gov.uk/id/local-authority/12UE,Huntingdonshire District Council,15/10/2015,176741,1208495292,5,145.2,Orange Airtime,CR455799,Chief Executive & Comt,Telephone &Mobile Phonecharges,240
http://statistics.data.gov.uk/id/local-authority/12UE,Huntingdonshire District Council,15/10/2015,175943,01/15/HDC006,5,12903,Hester Management Services Ltd,CR422903,Chief Executive & Comt,Consultants,711
http://statistics.data.gov.uk/id/local-authority/12UE,Huntingdonshire District Council,15/10/2015,176767,CA563,5,294,Association Of Democratic Services Officers,CR455508,Chief Executive & Comt,Training,130
http://statistics.data.gov.uk/id/local-authority/12UE,Huntingdonshire District Council,22/10/2015,587912,GB10100092314,5,21411.6,Ernst & Young,CR411950,Chief Executive & Comt,Audit Fees,701
http://statistics.data.gov.uk/id/local-authority/12UE,Huntingdonshire District Council,29/10/2015,178298,C-0002188177,5,4717.95,Computershare Vouchers Ltd,CR412205,Child Care Vouchers - Payroll,Deductions Paid To Third Party,26
http://statistics.data.gov.uk/id/local-authority/12UE,Huntingdonshire District Council,22/10/2015,177906,INVOICE NO.3,5,5000,Natalie Tayte,CR422224,Community Safety,Grants (Paid Out),800
http://statistics.data.gov.uk/id/local-authority/12UE,Huntingdonshire District Council,15/10/2015,176741,1208495292,5,27.68,Orange Airtime,CR455799,Community Services M Us,Telephone &Mobile Phonecharges,240
http://statistics.data.gov.uk/id/local-authority/12UE,Huntingdonshire District Council,15/10/2015,177184,559,5,1905,Hact,CR455657,Concessionary Fares,Contribution (Paid Out),810
http://statistics.data.gov.uk/id/local-authority/12UE,Huntingdonshire District Council,01/10/2015,175565,2015339,5,8412,Modern Mindset Ltd,CR482623,Corporate Committees,Software,206
http://statistics.data.gov.uk/id/local-authority/12UE,Huntingdonshire District Council,29/10/2015,587539,4976,6,768,South Cambs District Council,CR002825,Council Tax,Training,130
http://statistics.data.gov.uk/id/local-authority/12UE,Huntingdonshire District Council,01/10/2015,176452,102361,5,819.49,Newlyn Plc,CR409114,Council Tax,Bailiffs,703
http://statistics.data.gov.uk/id/local-authority/12UE,Huntingdonshire District Council,08/10/2015,177205,102574,5,900.86,Newlyn Plc,CR409114,Council Tax,Bailiffs,703
http://statistics.data.gov.uk/id/local-authority/12UE,Huntingdonshire District Council,01/10/2015,176838,630205,5,273.6,Callcredit Ltd,CR455548,Council Tax,Enquiries,723
http://statistics.data.gov.uk/id/local-authority/12UE,Huntingdonshire District Council,29/10/2015,177086,633437,5,194.4,Callcredit Ltd,CR455548,Council Tax,Enquiries,723
http://statistics.data.gov.uk/id/local-authority/12UE,Huntingdonshire District Council,15/10/2015,176534,2553826,5,375.07,Insight Direct Uk Ltd,CR000242,Council Tax,Other I T Hardware,203
http://statistics.data.gov.uk/id/local-authority/12UE,Huntingdonshire District Council,15/10/2015,176741,1208495292,5,4.8,Orange Airtime,CR455799,Council Tax,Telephone &Mobile Phonecharges,240
http://statistics.data.gov.uk/id/local-authority/12UE,Huntingdonshire District Council,29/10/2015,177206,B07092015/28092,5,2661.66,Jacobs,CR422350,Council Tax,Bailiffs,703
http://statistics.data.gov.uk/id/local-authority/12UE,Huntingdonshire District Council,01/10/2015,175637,B-10082015/0109,5,4844.24,Jacobs,CR422350,Council Tax,Bailiffs,703
http://statistics.data.gov.uk/id/local-authority/12UE,Huntingdonshire District Council,01/10/2015,175430,IN16PS15005627,5,1359.62,Whistl,CR479965,Council Tax,Postage,231
http://statistics.data.gov.uk/id/local-authority/12UE,Huntingdonshire District Council,08/10/2015,175806,IN16PS15005790,5,247.94,Whistl,CR479965,Council Tax,Postage,231
http://statistics.data.gov.uk/id/local-authority/12UE,Huntingdonshire District Council,22/10/2015,176843,IN16PS15006089,5,2935.47,Whistl,CR479965,Council Tax,Postage,231
http://statistics.data.gov.uk/id/local-authority/12UE,Huntingdonshire District Council,29/10/2015,177946,IN16PS15006393,5,681.63,Whistl,CR479965,Council Tax,Postage,231
http://statistics.data.gov.uk/id/local-authority/12UE,Huntingdonshire District Council,01/10/2015,175907,1278,5,331.79,Snackline Chilled Ltd,CR422825,Countryside,Catering Materials,559
http://statistics.data.gov.uk/id/local-authority/12UE,Huntingdonshire District Council,29/10/2015,177195,1408,5,278.14,Snackline Chilled Ltd,CR422825,Countryside,Catering Materials,559
http://statistics.data.gov.uk/id/local-authority/12UE,Huntingdonshire District Council,29/10/2015,177644,13121,5,50.22,Jade Security Services Ltd,CR422256,Countryside,Cash Collection,702
http://statistics.data.gov.uk/id/local-authority/12UE,Huntingdonshire District Council,01/10/2015,176863,22422,5,325.2,Street Process Colour Ltd,CR422705,Countryside,Printing (External),220
http://statistics.data.gov.uk/id/local-authority/12UE,Huntingdonshire District Council,29/10/2015,177983,161581,5,669.34,Arthur Ibbett Ltd,CR000430,Countryside,Materials,550
http://statistics.data.gov.uk/id/local-authority/12UE,Huntingdonshire District Council,29/10/2015,177183,478650,5,594.51,Pilgrim Foodservice Ltd,CR455695,Countryside,Catering Materials,559
http://statistics.data.gov.uk/id/local-authority/12UE,Huntingdonshire District Council,15/10/2015,177124,686871,5,250.09,Booker Cash And Carry,CR027611,Countryside,Catering Materials,559
http://statistics.data.gov.uk/id/local-authority/12UE,Huntingdonshire District Council,01/10/2015,175902,832341,5,382.01,King Bros,CR411339,Countryside,Catering Materials,559
http://statistics.data.gov.uk/id/local-authority/12UE,Huntingdonshire District Council,08/10/2015,175903,833086,5,280.55,King Bros,CR411339,Countryside,Catering Materials,559
http://statistics.data.gov.uk/id/local-authority/12UE,Huntingdonshire District Council,22/10/2015,177587,835356,5,447.92,King Bros,CR411339,Countryside,Catering Materials,559
http://statistics.data.gov.uk/id/local-authority/12UE,Huntingdonshire District Council,29/10/2015,177999,905747,5,347.99,Hire Or Buy Group Ltd,CR000707,Countryside,Equipment,500
http://statistics.data.gov.uk/id/local-authority/12UE,Huntingdonshire District Council,08/10/2015,177067,113415079,5,326.19,Anglian Water,CR000071,Countryside,Water & Sewerage,432
http://statistics.data.gov.uk/id/local-authority/12UE,Huntingdonshire District Council,15/10/2015,176741,1208495292,5,41.1,Orange Airtime,CR455799,Countryside,Telephone &Mobile Phonecharges,240
http://statistics.data.gov.uk/id/local-authority/12UE,Huntingdonshire District Council,01/10/2015,175894,4000002931,5,273.6,1st Choice Recruitment,CR416849,Countryside,Hired Staff,100
http://statistics.data.gov.uk/id/local-authority/12UE,Huntingdonshire District Council,08/10/2015,176804,4000002957,5,342,1st Choice Recruitment,CR416849,Countryside,Hired Staff,100
http://statistics.data.gov.uk/id/local-authority/12UE,Huntingdonshire District Council,22/10/2015,177976,4000003009,5,342,1st Choice Recruitment,CR416849,Countryside,Hired Staff,100
http://statistics.data.gov.uk/id/local-authority/12UE,Huntingdonshire District Council,29/10/2015,177977,4000003035,5,273.6,1st Choice Recruitment,CR416849,Countryside,Hired Staff,100
http://statistics.data.gov.uk/id/local-authority/12UE,Huntingdonshire District Council,08/10/2015,175900,SIN015757,5,288,Fenland Leisure Products Ltd,CR478560,Countryside,Materials,550
http://statistics.data.gov.uk/id/local-authority/12UE,Huntingdonshire District Council,08/10/2015,177181,2397,5,2437.5,White Commercial Surveyors Ltd,CR412242,Customer Service Centres,Rent,410
http://statistics.data.gov.uk/id/local-authority/12UE,Huntingdonshire District Council,08/10/2015,177181,2397,5,261.1,White Commercial Surveyors Ltd,CR412242,Customer Service Centres,Service Charges,412
http://statistics.data.gov.uk/id/local-authority/12UE,Huntingdonshire District Council,01/10/2015,176037,10769,5,487.8,Lightning Recruitment,CR028184,Customer Service Centres,Hired Staff,100
http://statistics.data.gov.uk/id/local-authority/12UE,Huntingdonshire District Council,15/10/2015,176491,10859,5,601.62,Lightning Recruitment,CR028184,Customer Service Centres,Hired Staff,100
http://statistics.data.gov.uk/id/local-authority/12UE,Huntingdonshire District Council,15/10/2015,176492,10861,5,499.84,Lightning Recruitment,CR028184,Customer Service Centres,Hired Staff,100
http://statistics.data.gov.uk/id/local-authority/12UE,Huntingdonshire District Council,22/10/2015,176880,10906,5,601.62,Lightning Recruitment,CR028184,Customer Service Centres,Hired Staff,100
http://statistics.data.gov.uk/id/local-authority/12UE,Huntingdonshire District Council,29/10/2015,177209,10951,5,601.62,Lightning Recruitment,CR028184,Customer Service Centres,Hired Staff,100
http://statistics.data.gov.uk/id/local-authority/12UE,Huntingdonshire District Council,22/10/2015,177169,10642843,5,551.14,Cambridgeshire County Council,CR477465,Customer Service Centres,Service Charges,412
http://statistics.data.gov.uk/id/local-authority/12UE,Huntingdonshire District Council,15/10/2015,176741,1208495292,5,12,Orange Airtime,CR455799,Customer Service Centres,Telephone &Mobile Phonecharges,240
http://statistics.data.gov.uk/id/local-authority/12UE,Huntingdonshire District Council,08/10/2015,176494,10810A,5,585.36,Lightning Recruitment,CR028184,Customer Service Centres,Hired Staff,100
http://statistics.data.gov.uk/id/local-authority/12UE,Huntingdonshire District Council,01/10/2015,175445,9939286,5,372.83,Snr Denton,CR453969,Dc Application Processing,Consultants,711
http://statistics.data.gov.uk/id/local-authority/12UE,Huntingdonshire District Council,01/10/2015,176019,10771,5,651.96,Lightning Recruitment,CR028184,Development Team,Hired Staff,100
http://statistics.data.gov.uk/id/local-authority/12UE,Huntingdonshire District Council,08/10/2015,176859,10812,5,804.08,Lightning Recruitment,CR028184,Development Team,Hired Staff,100
http://statistics.data.gov.uk/id/local-authority/12UE,Huntingdonshire District Council,29/10/2015,177210,10953,5,804.08,Lightning Recruitment,CR028184,Development Team,Hired Staff,100
http://statistics.data.gov.uk/id/local-authority/12UE,Huntingdonshire District Council,01/10/2015,175918,596948,5,747.08,Bytes Software Services Ltd,CR455210,Development Team,Software,206
http://statistics.data.gov.uk/id/local-authority/12UE,Huntingdonshire District Council,01/10/2015,175918,596948,5,2086.92,Bytes Software Services Ltd,CR455210,Development Team,Software,206
http://statistics.data.gov.uk/id/local-authority/12UE,Huntingdonshire District Council,15/10/2015,176741,1208495292,5,2.4,Orange Airtime,CR455799,Development Team,Telephone &Mobile Phonecharges,240
http://statistics.data.gov.uk/id/local-authority/12UE,Huntingdonshire District Council,22/10/2015,177063,10908A,5,782.35,Lightning Recruitment,CR028184,Development Team,Hired Staff,100
http://statistics.data.gov.uk/id/local-authority/12UE,Huntingdonshire District Council,08/10/2015,175818,7056,5,1326,West Country Group,CR400581,Document Centre,Envelopes,224
http://statistics.data.gov.uk/id/local-authority/12UE,Huntingdonshire District Council,15/10/2015,176714,339086,5,999.36,Surrey Envelopes,CR482428,Document Centre,Envelopes,224
http://statistics.data.gov.uk/id/local-authority/12UE,Huntingdonshire District Council,08/10/2015,176718,5133280,5,55.2,Antalis Ltd,CR479468,Document Centre,Paper,562
http://statistics.data.gov.uk/id/local-authority/12UE,Huntingdonshire District Council,08/10/2015,176718,5133280,5,65.47,Antalis Ltd,CR479468,Document Centre,Paper,562
http://statistics.data.gov.uk/id/local-authority/12UE,Huntingdonshire District Council,08/10/2015,176718,5133280,5,530.4,Antalis Ltd,CR479468,Document Centre,Paper,562
http://statistics.data.gov.uk/id/local-authority/12UE,Huntingdonshire District Council,08/10/2015,176718,5133280,5,91.36,Antalis Ltd,CR479468,Document Centre,Paper,562
http://statistics.data.gov.uk/id/local-authority/12UE,Huntingdonshire District Council,08/10/2015,176718,5133280,5,106.8,Antalis Ltd,CR479468,Document Centre,Paper,562
http://statistics.data.gov.uk/id/local-authority/12UE,Huntingdonshire District Council,15/10/2015,176116,5155109,5,209.38,Antalis Ltd,CR479468,Document Centre,Paper,562
http://statistics.data.gov.uk/id/local-authority/12UE,Huntingdonshire District Council,15/10/2015,176116,5155109,5,62.35,Antalis Ltd,CR479468,Document Centre,Paper,562
http://statistics.data.gov.uk/id/local-authority/12UE,Huntingdonshire District Council,15/10/2015,176715,5163335,5,110.4,Antalis Ltd,CR479468,Document Centre,Paper,562
http://statistics.data.gov.uk/id/local-authority/12UE,Huntingdonshire District Council,15/10/2015,176715,5163335,5,117.24,Antalis Ltd,CR479468,Document Centre,Paper,562
http://statistics.data.gov.uk/id/local-authority/12UE,Huntingdonshire District Council,15/10/2015,176715,5163335,5,128.64,Antalis Ltd,CR479468,Document Centre,Paper,562
http://statistics.data.gov.uk/id/local-authority/12UE,Huntingdonshire District Council,22/10/2015,176716,5180653,5,530.4,Antalis Ltd,CR479468,Document Centre,Paper,562
http://statistics.data.gov.uk/id/local-authority/12UE,Huntingdonshire District Council,29/10/2015,178088,5200731,5,98.21,Antalis Ltd,CR479468,Document Centre,Paper,562
http://statistics.data.gov.uk/id/local-authority/12UE,Huntingdonshire District Council,29/10/2015,178088,5200731,5,98.1,Antalis Ltd,CR479468,Document Centre,Paper,562
http://statistics.data.gov.uk/id/local-authority/12UE,Huntingdonshire District Council,29/10/2015,178088,5200731,5,60.41,Antalis Ltd,CR479468,Document Centre,Paper,562
http://statistics.data.gov.uk/id/local-authority/12UE,Huntingdonshire District Council,01/10/2015,175433,9074645,5,2253.9,Canon Uk Ltd,CR409013,Document Centre,Equipment Maintenance,511
http://statistics.data.gov.uk/id/local-authority/12UE,Huntingdonshire District Council,01/10/2015,175809,9076372,5,6930.84,Canon Uk Ltd,CR409013,Document Centre,Equipment Maintenance,511
http://statistics.data.gov.uk/id/local-authority/12UE,Huntingdonshire District Council,29/10/2015,177270,9080927,5,1881,Canon Uk Ltd,CR409013,Document Centre,Equipment Maintenance,511
http://statistics.data.gov.uk/id/local-authority/12UE,Huntingdonshire District Council,08/10/2015,176726,92077741,5,599.4,Neopost,CR400652,Document Centre,Equipment Maintenance,511
http://statistics.data.gov.uk/id/local-authority/12UE,Huntingdonshire District Council,01/10/2015,176729,1120082256,5,2619.5,Konica Minolta,CR478866,Document Centre,Equipment Maintenance,511
http://statistics.data.gov.uk/id/local-authority/12UE,Huntingdonshire District Council,15/10/2015,176741,1208495292,5,4.8,Orange Airtime,CR455799,Document Centre,Telephone &Mobile Phonecharges,240
http://statistics.data.gov.uk/id/local-authority/12UE,Huntingdonshire District Council,15/10/2015,176725,9050599157,5,1048.8,Royal Mail,CR027083,Document Centre,Postage,231
http://statistics.data.gov.uk/id/local-authority/12UE,Huntingdonshire District Council,22/10/2015,177948,9050692620,5,1234.72,Royal Mail,CR027083,Document Centre,Postage,231
http://statistics.data.gov.uk/id/local-authority/12UE,Huntingdonshire District Council,01/10/2015,175430,IN16PS15005627,5,1213.31,Whistl,CR479965,Document Centre,Postage,231
http://statistics.data.gov.uk/id/local-authority/12UE,Huntingdonshire District Council,08/10/2015,175806,IN16PS15005790,5,884.88,Whistl,CR479965,Document Centre,Postage,231
http://statistics.data.gov.uk/id/local-authority/12UE,Huntingdonshire District Council,15/10/2015,176728,IN16PS15005944,5,1149.46,Whistl,CR479965,Document Centre,Postage,231
http://statistics.data.gov.uk/id/local-authority/12UE,Huntingdonshire District Council,22/10/2015,176843,IN16PS15006089,5,875.53,Whistl,CR479965,Document Centre,Postage,231
http://statistics.data.gov.uk/id/local-authority/12UE,Huntingdonshire District Council,29/10/2015,177271,IN16PS15006231,5,1145,Whistl,CR479965,Document Centre,Postage,231
http://statistics.data.gov.uk/id/local-authority/12UE,Huntingdonshire District Council,29/10/2015,177946,IN16PS15006393,5,972.26,Whistl,CR479965,Document Centre,Postage,231
http://statistics.data.gov.uk/id/local-authority/12UE,Huntingdonshire District Council,15/10/2015,177203,21272,5,1915.91,John Henry & Sons Ta Wfl Enterprises Ltd,CR456001,Domestic Refuse,Vehicle Parts & Fittings,625
http://statistics.data.gov.uk/id/local-authority/12UE,Huntingdonshire District Council,08/10/2015,177168,21562,5,2194.2,M & N Vehicle Services,CR480661,Domestic Refuse,Vehicle Maintenance External,619
http://statistics.data.gov.uk/id/local-authority/12UE,Huntingdonshire District Council,08/10/2015,177168,21562,5,95,M & N Vehicle Services,CR480661,Domestic Refuse,Vehicle Maintenance External,619
http://statistics.data.gov.uk/id/local-authority/12UE,Huntingdonshire District Council,29/10/2015,177988,80656,5,2867.57,Bandvulc Truck Tyres,CR406810,Domestic Refuse,Tyres,630
http://statistics.data.gov.uk/id/local-authority/12UE,Huntingdonshire District Council,08/10/2015,177185,81920,5,694.98,Frank Ratcliffe & Son,CR007546,Domestic Refuse,Vehicle Maintenance External,619
http://statistics.data.gov.uk/id/local-authority/12UE,Huntingdonshire District Council,01/10/2015,175867,86416,5,999.02,Gelpack Excelsior Limited,CR002966,Domestic Refuse,Refuse Sacks,552
http://statistics.data.gov.uk/id/local-authority/12UE,Huntingdonshire District Council,15/10/2015,177194,91600,5,761.05,Red Forge Ltd,CR405690,Domestic Refuse,Vehicle Maintenance External,619
http://statistics.data.gov.uk/id/local-authority/12UE,Huntingdonshire District Council,15/10/2015,177619,128380,5,348,Silver Shield Windscreens,CR024745,Domestic Refuse,Vehicle Parts & Fittings,625
http://statistics.data.gov.uk/id/local-authority/12UE,Huntingdonshire District Council,29/10/2015,177557,175592,5,294,Barton Petroleum,CR409205,Domestic Refuse,Vehicle Oil & Lubricants,626
http://statistics.data.gov.uk/id/local-authority/12UE,Huntingdonshire District Council,22/10/2015,177993,265615,5,1200,Dennis Eagle Ltd,CR000200,Domestic Refuse,Vehicle Hire,607
http://statistics.data.gov.uk/id/local-authority/12UE,Huntingdonshire District Council,22/10/2015,177993,265615,5,7637.41,Dennis Eagle Ltd,CR000200,Domestic Refuse,Vehicle Hire,607
http://statistics.data.gov.uk/id/local-authority/12UE,Huntingdonshire District Council,29/10/2015,177600,58364814,5,291.17,Marshall Motor Group,CR009641,Domestic Refuse,Vehicle Parts & Fittings,625
http://statistics.data.gov.uk/id/local-authority/12UE,Huntingdonshire District Council,01/10/2015,175884,96316442,5,899.02,Terberg Matec Uk Ltd,CR402183,Domestic Refuse,Vehicle Parts & Fittings,625
http://statistics.data.gov.uk/id/local-authority/12UE,Huntingdonshire District Council,15/10/2015,177198,96316811,5,328.23,Terberg Matec Uk Ltd,CR402183,Domestic Refuse,Vehicle Parts & Fittings,625
http://statistics.data.gov.uk/id/local-authority/12UE,Huntingdonshire District Council,15/10/2015,177199,96317008,5,412.56,Terberg Matec Uk Ltd,CR402183,Domestic Refuse,Vehicle Accident Damage,623
http://statistics.data.gov.uk/id/local-authority/12UE,Huntingdonshire District Council,29/10/2015,177638,96317355,5,573.48,Terberg Matec Uk Ltd,CR402183,Domestic Refuse,Vehicle Parts & Fittings,625
http://statistics.data.gov.uk/id/local-authority/12UE,Huntingdonshire District Council,22/10/2015,177607,344418416,5,345.6,Parker Merchanting,CR415428,Domestic Refuse,Cleaning Materials,443
http://statistics.data.gov.uk/id/local-authority/12UE,Huntingdonshire District Council,01/10/2015,175856,DE10894608,5,564.79,Dennis Eagle Ltd,CR000200,Domestic Refuse,Vehicle Parts & Fittings,625
http://statistics.data.gov.uk/id/local-authority/12UE,Huntingdonshire District Council,08/10/2015,175858,DE10894934,5,1406.39,Dennis Eagle Ltd,CR000200,Domestic Refuse,Vehicle Parts & Fittings,625
http://statistics.data.gov.uk/id/local-authority/12UE,Huntingdonshire District Council,08/10/2015,176451,DE10896360,5,518.19,Dennis Eagle Ltd,CR000200,Domestic Refuse,Vehicle Parts & Fittings,625
http://statistics.data.gov.uk/id/local-authority/12UE,Huntingdonshire District Council,29/10/2015,177568,DE10900378,5,475.7,Dennis Eagle Ltd,CR000200,Domestic Refuse,Vehicle Parts & Fittings,625
http://statistics.data.gov.uk/id/local-authority/12UE,Huntingdonshire District Council,08/10/2015,176819,IN0462062,5,4782.97,Staffline Group,CR416827,Domestic Refuse,Hired Staff,100
http://statistics.data.gov.uk/id/local-authority/12UE,Huntingdonshire District Council,08/10/2015,176817,IN0462064,5,3103.55,Staffline Group,CR416827,Domestic Refuse,Hired Staff,100
http://statistics.data.gov.uk/id/local-authority/12UE,Huntingdonshire District Council,15/10/2015,176827,IN0463794,5,4301.87,Staffline Group,CR416827,Domestic Refuse,Hired Staff,100
http://statistics.data.gov.uk/id/local-authority/12UE,Huntingdonshire District Council,15/10/2015,176823,IN0463796,5,2193.26,Staffline Group,CR416827,Domestic Refuse,Hired Staff,100
http://statistics.data.gov.uk/id/local-authority/12UE,Huntingdonshire District Council,15/10/2015,177625,IN0464859,5,4248.76,Staffline Group,CR416827,Domestic Refuse,Hired Staff,100
http://statistics.data.gov.uk/id/local-authority/12UE,Huntingdonshire District Council,15/10/2015,177623,IN0464861,5,3272.57,Staffline Group,CR416827,Domestic Refuse,Hired Staff,100
http://statistics.data.gov.uk/id/local-authority/12UE,Huntingdonshire District Council,22/10/2015,177631,IN0466196,5,4226.99,Staffline Group,CR416827,Domestic Refuse,Hired Staff,100
http://statistics.data.gov.uk/id/local-authority/12UE,Huntingdonshire District Council,22/10/2015,177629,IN0466198,5,2946.12,Staffline Group,CR416827,Domestic Refuse,Hired Staff,100
http://statistics.data.gov.uk/id/local-authority/12UE,Huntingdonshire District Council,01/10/2015,175909,IN108606,5,1038.36,Egbert H Taylor And Co Ltd,CR004818,Domestic Refuse,Equipment,500
http://statistics.data.gov.uk/id/local-authority/12UE,Huntingdonshire District Council,29/10/2015,177271,IN16PS15006231,5,140.23,Whistl,CR479965,Domestic Refuse,Postage,231
http://statistics.data.gov.uk/id/local-authority/12UE,Huntingdonshire District Council,29/10/2015,177946,IN16PS15006393,5,54.88,Whistl,CR479965,Domestic Refuse,Postage,231
http://statistics.data.gov.uk/id/local-authority/12UE,Huntingdonshire District Council,01/10/2015,175495,25140,5,2976,Hygiene Solutions,CR477443,E F H And Depots,Building Mtce,303
http://statistics.data.gov.uk/id/local-authority/12UE,Huntingdonshire District Council,15/10/2015,177519,65924,5,2979.16,Haven Power Ltd,CR455940,E F H And Depots,Electricity,420
http://statistics.data.gov.uk/id/local-authority/12UE,Huntingdonshire District Council,15/10/2015,176383,3067961,5,373.64,First In Service Ltd,CR422285,E F H And Depots,Plant & Equipment Maintenance,380
http://statistics.data.gov.uk/id/local-authority/12UE,Huntingdonshire District Council,15/10/2015,175779,F0021674,5,2244,Geoquip Worldwide,CR479071,E F H And Depots,Equipment Maintenance,511
http://statistics.data.gov.uk/id/local-authority/12UE,Huntingdonshire District Council,29/10/2015,177100,SIN003408,5,1105.72,Enterprise Support Services Uk Ltd,CR422509,E F H And Depots,Building Cleaning,440
http://statistics.data.gov.uk/id/local-authority/12UE,Huntingdonshire District Council,08/10/2015,175807,9050564627,5,1.06,Royal Mail,CR027083,Elections,Postage,231
http://statistics.data.gov.uk/id/local-authority/12UE,Huntingdonshire District Council,15/10/2015,176741,1208495292,5,12.31,Orange Airtime,CR455799,Electoral Registration,Telephone &Mobile Phonecharges,240
http://statistics.data.gov.uk/id/local-authority/12UE,Huntingdonshire District Council,08/10/2015,175807,9050564627,5,1823.54,Royal Mail,CR027083,Electoral Registration,Postage,231
http://statistics.data.gov.uk/id/local-authority/12UE,Huntingdonshire District Council,15/10/2015,176725,9050599157,5,206.89,Royal Mail,CR027083,Electoral Registration,Postage,231
http://statistics.data.gov.uk/id/local-authority/12UE,Huntingdonshire District Council,15/10/2015,176888,9050635707,5,8917.56,Royal Mail,CR027083,Electoral Registration,Postage,231
http://statistics.data.gov.uk/id/local-authority/12UE,Huntingdonshire District Council,22/10/2015,177948,9050692620,5,2018.11,Royal Mail,CR027083,Electoral Registration,Postage,231
http://statistics.data.gov.uk/id/local-authority/12UE,Huntingdonshire District Council,22/10/2015,177274,9050698737,5,1776.3,Royal Mail,CR027083,Electoral Registration,Postage,231
http://statistics.data.gov.uk/id/local-authority/12UE,Huntingdonshire District Council,29/10/2015,588575,ERS1502390,6,5633.9,Electoral Reform Services,CR479981,Electoral Registration,Management Charge,733
http://statistics.data.gov.uk/id/local-authority/12UE,Huntingdonshire District Council,01/10/2015,175430,IN16PS15005627,5,209.73,Whistl,CR479965,Electoral Registration,Postage,231
http://statistics.data.gov.uk/id/local-authority/12UE,Huntingdonshire District Council,08/10/2015,175806,IN16PS15005790,5,186.56,Whistl,CR479965,Electoral Registration,Postage,231
http://statistics.data.gov.uk/id/local-authority/12UE,Huntingdonshire District Council,15/10/2015,176728,IN16PS15005944,5,155.68,Whistl,CR479965,Electoral Registration,Postage,231
http://statistics.data.gov.uk/id/local-authority/12UE,Huntingdonshire District Council,22/10/2015,176843,IN16PS15006089,5,411.76,Whistl,CR479965,Electoral Registration,Postage,231
http://statistics.data.gov.uk/id/local-authority/12UE,Huntingdonshire District Council,29/10/2015,177271,IN16PS15006231,5,195.11,Whistl,CR479965,Electoral Registration,Postage,231
http://statistics.data.gov.uk/id/local-authority/12UE,Huntingdonshire District Council,29/10/2015,177946,IN16PS15006393,5,675.95,Whistl,CR479965,Electoral Registration,Postage,231
http://statistics.data.gov.uk/id/local-authority/12UE,Huntingdonshire District Council,22/10/2015,177652,PR150124,5,1039.28,Rule & Parker Ltd,CR152340,Energy Efficiency,Building Mtce,303
http://statistics.data.gov.uk/id/local-authority/12UE,Huntingdonshire District Council,15/10/2015,176741,1208495292,5,165.35,Orange Airtime,CR455799,Environmental Health M Us,Telephone &Mobile Phonecharges,240
http://statistics.data.gov.uk/id/local-authority/12UE,Huntingdonshire District Council,01/10/2015,175268,INV521704,5,59.25,Chartered Institute Of Environmental Health,CR002987,Environmental Health M Us,Books & Publications,250
http://statistics.data.gov.uk/id/local-authority/12UE,Huntingdonshire District Council,01/10/2015,175268,INV521704,5,6.3,Chartered Institute Of Environmental Health,CR002987,Environmental Health M Us,Books & Publications,250
http://statistics.data.gov.uk/id/local-authority/12UE,Huntingdonshire District Council,01/10/2015,175268,INV521704,5,480,Chartered Institute Of Environmental Health,CR002987,Environmental Health M Us,Books & Publications,250
http://statistics.data.gov.uk/id/local-authority/12UE,Huntingdonshire District Council,01/10/2015,176787,01/09/2015,5,1378.44,C G Utilities,CR119758,Environmental Imps Mgt,Sitework,359
http://statistics.data.gov.uk/id/local-authority/12UE,Huntingdonshire District Council,15/10/2015,175455,JBC/27294/4663,5,633.6,J Breheny Contractors Ltd,CR000314,Environmental Imps Mgt,Sitework,359
http://statistics.data.gov.uk/id/local-authority/12UE,Huntingdonshire District Council,29/10/2015,177648,76629,5,420,Elmhurst Energy Systems Ltd,CR40233,Environmental Management,Software,206
http://statistics.data.gov.uk/id/local-authority/12UE,Huntingdonshire District Council,15/10/2015,176741,1208495292,5,81.84,Orange Airtime,CR455799,Environmental Management,Telephone &Mobile Phonecharges,240
http://statistics.data.gov.uk/id/local-authority/12UE,Huntingdonshire District Council,29/10/2015,177123,90179326,5,1703.4,Freeth Cartwright Llp,CR480787,Estates Properties Capital,Legal Fees,729
http://statistics.data.gov.uk/id/local-authority/12UE,Huntingdonshire District Council,01/10/2015,176022,10772,5,268.02,Lightning Recruitment,CR028184,Financial Services Mus,Hired Staff,100
http://statistics.data.gov.uk/id/local-authority/12UE,Huntingdonshire District Council,01/10/2015,176041,10773,5,489.22,Lightning Recruitment,CR028184,Financial Services Mus,Hired Staff,100
http://statistics.data.gov.uk/id/local-authority/12UE,Huntingdonshire District Council,08/10/2015,176354,10813,5,696.85,Lightning Recruitment,CR028184,Financial Services Mus,Hired Staff,100
http://statistics.data.gov.uk/id/local-authority/12UE,Huntingdonshire District Council,08/10/2015,176353,10814,5,576.58,Lightning Recruitment,CR028184,Financial Services Mus,Hired Staff,100
http://statistics.data.gov.uk/id/local-authority/12UE,Huntingdonshire District Council,15/10/2015,176493,10862,5,518.17,Lightning Recruitment,CR028184,Financial Services Mus,Hired Staff,100
http://statistics.data.gov.uk/id/local-authority/12UE,Huntingdonshire District Council,22/10/2015,177208,10909,5,536.04,Lightning Recruitment,CR028184,Financial Services Mus,Hired Staff,100
http://statistics.data.gov.uk/id/local-authority/12UE,Huntingdonshire District Council,29/10/2015,178229,54785,5,2250,Barker Storey Matthews,CR400788,Financial Services Mus,Consultants,711
http://statistics.data.gov.uk/id/local-authority/12UE,Huntingdonshire District Council,01/10/2015,176838,630205,5,103.2,Callcredit Ltd,CR455548,Financial Services Mus,Enquiries,723
http://statistics.data.gov.uk/id/local-authority/12UE,Huntingdonshire District Council,29/10/2015,177086,633437,5,69.6,Callcredit Ltd,CR455548,Financial Services Mus,Enquiries,723
http://statistics.data.gov.uk/id/local-authority/12UE,Huntingdonshire District Council,29/10/2015,178226,1605145,5,621.6,Interaction Recruitment Plc,CR007892,Financial Services Mus,Hired Staff,100
http://statistics.data.gov.uk/id/local-authority/12UE,Huntingdonshire District Council,15/10/2015,176741,1208495292,5,4.8,Orange Airtime,CR455799,Financial Services Mus,Telephone &Mobile Phonecharges,240
http://statistics.data.gov.uk/id/local-authority/12UE,Huntingdonshire District Council,29/10/2015,178276,ARBK/99035963,5,120,Advanced Business Solutions,CR032921,Financial Services Mus,Training,130
http://statistics.data.gov.uk/id/local-authority/12UE,Huntingdonshire District Council,29/10/2015,178276,ARBK/99035963,5,1140,Advanced Business Solutions,CR032921,Financial Services Mus,Training,130
http://statistics.data.gov.uk/id/local-authority/12UE,Huntingdonshire District Council,22/10/2015,177265,ARCMIN/99052215,5,1706.88,Advanced Business Solutions,CR032921,Financial Services Mus,Software,206
http://statistics.data.gov.uk/id/local-authority/12UE,Huntingdonshire District Council,01/10/2015,175416,BC00127,5,4860,Barry Cornelius Associates,CR422523,Financial Services Mus,Hired Staff,100
http://statistics.data.gov.uk/id/local-authority/12UE,Huntingdonshire District Council,29/10/2015,177074,BC00131,5,7020,Barry Cornelius Associates,CR422523,Financial Services Mus,Hired Staff,100
http://statistics.data.gov.uk/id/local-authority/12UE,Huntingdonshire District Council,01/10/2015,176722,INV1595156,5,487.2,Interaction Recruitment Plc,CR007892,Financial Services Mus,Hired Staff,100
http://statistics.data.gov.uk/id/local-authority/12UE,Huntingdonshire District Council,01/10/2015,176721,INV1597015,5,485.38,Interaction Recruitment Plc,CR007892,Financial Services Mus,Hired Staff,100
http://statistics.data.gov.uk/id/local-authority/12UE,Huntingdonshire District Council,01/10/2015,176723,INV1597016,5,487.2,Interaction Recruitment Plc,CR007892,Financial Services Mus,Hired Staff,100
http://statistics.data.gov.uk/id/local-authority/12UE,Huntingdonshire District Council,08/10/2015,176720,INV1599031,5,564.01,Interaction Recruitment Plc,CR007892,Financial Services Mus,Hired Staff,100
http://statistics.data.gov.uk/id/local-authority/12UE,Huntingdonshire District Council,08/10/2015,176724,INV1599032,5,336,Interaction Recruitment Plc,CR007892,Financial Services Mus,Hired Staff,100
http://statistics.data.gov.uk/id/local-authority/12UE,Huntingdonshire District Council,15/10/2015,177045,INV1601217,5,369.6,Interaction Recruitment Plc,CR007892,Financial Services Mus,Hired Staff,100
http://statistics.data.gov.uk/id/local-authority/12UE,Huntingdonshire District Council,22/10/2015,177057,INV1603268,5,614.52,Interaction Recruitment Plc,CR007892,Financial Services Mus,Hired Staff,100
http://statistics.data.gov.uk/id/local-authority/12UE,Huntingdonshire District Council,22/10/2015,177056,INV1603269,5,621.6,Interaction Recruitment Plc,CR007892,Financial Services Mus,Hired Staff,100
http://statistics.data.gov.uk/id/local-authority/12UE,Huntingdonshire District Council,29/10/2015,177643,36669,5,434.62,Trinity Engineering & Component Supplies Ltd,CR455479,Fleet Management,Materials,550
http://statistics.data.gov.uk/id/local-authority/12UE,Huntingdonshire District Council,08/10/2015,175871,63068,5,279.33,Hq Forklifts Ltd,CR404076,Fleet Management,Vehicle Maintenance External,619
http://statistics.data.gov.uk/id/local-authority/12UE,Huntingdonshire District Council,29/10/2015,178311,259843I,5,329.71,A C Commercials,CR000141,Fleet Management,Materials,550
http://statistics.data.gov.uk/id/local-authority/12UE,Huntingdonshire District Council,15/10/2015,176483,15349,5,860.36,Stuart Brown Ltd,CR479796,Grounds Maintenance,Equipment,500
http://statistics.data.gov.uk/id/local-authority/12UE,Huntingdonshire District Council,29/10/2015,177579,35382,5,285.36,Groundsman,CR422159,Grounds Maintenance,Equipment,500
http://statistics.data.gov.uk/id/local-authority/12UE,Huntingdonshire District Council,08/10/2015,177162,48261,5,558.26,Landmark Trading Ltd,CR411433,Grounds Maintenance,Equipment,500
http://statistics.data.gov.uk/id/local-authority/12UE,Huntingdonshire District Council,29/10/2015,177981,161513,5,454.92,Arthur Ibbett Ltd,CR000430,Grounds Maintenance,Vehicle Parts & Fittings,625
http://statistics.data.gov.uk/id/local-authority/12UE,Huntingdonshire District Council,01/10/2015,175859,774517,5,605.88,Ernest Doe & Sons,CR000261,Grounds Maintenance,Vehicle Parts & Fittings,625
http://statistics.data.gov.uk/id/local-authority/12UE,Huntingdonshire District Council,08/10/2015,176458,774757,5,447.11,Ernest Doe & Sons,CR000261,Grounds Maintenance,Vehicle Parts & Fittings,625
http://statistics.data.gov.uk/id/local-authority/12UE,Huntingdonshire District Council,08/10/2015,177164,8652274,5,639.32,Lely (Uk) Ltd,CR098282,Grounds Maintenance,Vehicle Parts & Fittings,625
http://statistics.data.gov.uk/id/local-authority/12UE,Huntingdonshire District Council,01/10/2015,176811,10818623,5,876.91,Euramka Promotions Ltd,CR001864,Grounds Maintenance,Diesel,615
http://statistics.data.gov.uk/id/local-authority/12UE,Huntingdonshire District Council,01/10/2015,176811,10818623,5,49.21,Euramka Promotions Ltd,CR001864,Grounds Maintenance,Petrol,614
http://statistics.data.gov.uk/id/local-authority/12UE,Huntingdonshire District Council,29/10/2015,178007,10918674,5,1185.74,Euramka Promotions Ltd,CR001864,Grounds Maintenance,Diesel,615
http://statistics.data.gov.uk/id/local-authority/12UE,Huntingdonshire District Council,29/10/2015,178007,10918674,5,67.47,Euramka Promotions Ltd,CR001864,Grounds Maintenance,Petrol,614
http://statistics.data.gov.uk/id/local-authority/12UE,Huntingdonshire District Council,29/10/2015,178053,3200011861,5,286.45,Shell Uk Ltd,CR028192,Grounds Maintenance,Diesel,615
http://statistics.data.gov.uk/id/local-authority/12UE,Huntingdonshire District Council,01/10/2015,176479,2015/120,5,1290,Red Stag Trainnig Ltd,CR422163,Grounds Maintenance,Training,130
http://statistics.data.gov.uk/id/local-authority/12UE,Huntingdonshire District Council,01/10/2015,176479,2015/120,5,410,Red Stag Trainnig Ltd,CR422163,Grounds Maintenance,Training,130
http://statistics.data.gov.uk/id/local-authority/12UE,Huntingdonshire District Council,08/10/2015,176822,IN0462063,5,579.73,Staffline Group,CR416827,Grounds Maintenance,Hired Staff,100
http://statistics.data.gov.uk/id/local-authority/12UE,Huntingdonshire District Council,15/10/2015,176830,IN0463795,5,1117.1,Staffline Group,CR416827,Grounds Maintenance,Hired Staff,100
http://statistics.data.gov.uk/id/local-authority/12UE,Huntingdonshire District Council,15/10/2015,177628,IN0464860,5,1675.66,Staffline Group,CR416827,Grounds Maintenance,Hired Staff,100
http://statistics.data.gov.uk/id/local-authority/12UE,Huntingdonshire District Council,22/10/2015,177635,IN0466197,5,1621.36,Staffline Group,CR416827,Grounds Maintenance,Hired Staff,100
http://statistics.data.gov.uk/id/local-authority/12UE,Huntingdonshire District Council,29/10/2015,178039,IN0468041,5,1479.41,Staffline Group,CR416827,Grounds Maintenance,Hired Staff,100
http://statistics.data.gov.uk/id/local-authority/12UE,Huntingdonshire District Council,29/10/2015,177696,30-Sep-15,5,3015,Edrm Systems Ltd,CR416278,Helpdesk,Hired Staff,100
http://statistics.data.gov.uk/id/local-authority/12UE,Huntingdonshire District Council,08/10/2015,175927,56918,5,267.6,B & B Business Equipment Ltd,CR478057,Helpdesk,Equipment Maintenance,511
http://statistics.data.gov.uk/id/local-authority/12UE,Huntingdonshire District Council,15/10/2015,175935,110970,5,264.6,Twofold Consulting,CR453929,Helpdesk,Equipment Maintenance,511
http://statistics.data.gov.uk/id/local-authority/12UE,Huntingdonshire District Council,15/10/2015,175936,110971,5,264.6,Twofold Consulting,CR453929,Helpdesk,Equipment Maintenance,511
http://statistics.data.gov.uk/id/local-authority/12UE,Huntingdonshire District Council,15/10/2015,175937,110972,5,590.41,Twofold Consulting,CR453929,Helpdesk,Equipment Maintenance,511
http://statistics.data.gov.uk/id/local-authority/12UE,Huntingdonshire District Council,22/10/2015,177263,156311,5,504,Covergold Ltd,CR025792,Helpdesk,Equipment Maintenance,511
http://statistics.data.gov.uk/id/local-authority/12UE,Huntingdonshire District Council,15/10/2015,177280,91353034,5,8100,Northgatepublic Services Uk Ltd,CR028925,Helpdesk,Software,206
http://statistics.data.gov.uk/id/local-authority/12UE,Huntingdonshire District Council,15/10/2015,176741,1208495292,5,33,Orange Airtime,CR455799,Helpdesk,Telephone &Mobile Phonecharges,240
http://statistics.data.gov.uk/id/local-authority/12UE,Huntingdonshire District Council,01/10/2015,175536,742878104/0915,5,975.66,Virgin Media Business,CR033120,Helpdesk,I T Line Rental,248
http://statistics.data.gov.uk/id/local-authority/12UE,Huntingdonshire District Council,01/10/2015,175536,742878104/0915,5,1122,Virgin Media Business,CR033120,Helpdesk,Telephone &Mobile Phonecharges,240
http://statistics.data.gov.uk/id/local-authority/12UE,Huntingdonshire District Council,29/10/2015,177699,742878104/1015,5,975.66,Virgin Media Business,CR033120,Helpdesk,I T Line Rental,248
http://statistics.data.gov.uk/id/local-authority/12UE,Huntingdonshire District Council,29/10/2015,177699,742878104/1015,5,1499.55,Virgin Media Business,CR033120,Helpdesk,Telephone &Mobile Phonecharges,240
http://statistics.data.gov.uk/id/local-authority/12UE,Huntingdonshire District Council,08/10/2015,177259,923469-057A,5,11232.01,Virgin Media Business/Cpsn,CR455148,Helpdesk,I T Line Rental,248
http://statistics.data.gov.uk/id/local-authority/12UE,Huntingdonshire District Council,22/10/2015,177266,923469-058A,5,7267.6,Virgin Media Business/Cpsn,CR455148,Helpdesk,I T Line Rental,248
http://statistics.data.gov.uk/id/local-authority/12UE,Huntingdonshire District Council,01/10/2015,175250,R008982,5,1320,Premier It Recruitment Ltd,CR454029,Helpdesk,Hired Staff,100
http://statistics.data.gov.uk/id/local-authority/12UE,Huntingdonshire District Council,08/10/2015,175934,R009062,5,1056,Premier It Recruitment Ltd,CR454029,Helpdesk,Hired Staff,100
http://statistics.data.gov.uk/id/local-authority/12UE,Huntingdonshire District Council,08/10/2015,175933,R009063,5,1320,Premier It Recruitment Ltd,CR454029,Helpdesk,Hired Staff,100
http://statistics.data.gov.uk/id/local-authority/12UE,Huntingdonshire District Council,08/10/2015,175932,R009064,5,1320,Premier It Recruitment Ltd,CR454029,Helpdesk,Hired Staff,100
http://statistics.data.gov.uk/id/local-authority/12UE,Huntingdonshire District Council,08/10/2015,175931,R009065,5,1320,Premier It Recruitment Ltd,CR454029,Helpdesk,Hired Staff,100
http://statistics.data.gov.uk/id/local-authority/12UE,Huntingdonshire District Council,08/10/2015,175929,R009066,5,1320,Premier It Recruitment Ltd,CR454029,Helpdesk,Hired Staff,100
http://statistics.data.gov.uk/id/local-authority/12UE,Huntingdonshire District Council,15/10/2015,176540,R009233,5,1056,Premier It Recruitment Ltd,CR454029,Helpdesk,Hired Staff,100
http://statistics.data.gov.uk/id/local-authority/12UE,Huntingdonshire District Council,15/10/2015,176541,R009234,5,1320,Premier It Recruitment Ltd,CR454029,Helpdesk,Hired Staff,100
http://statistics.data.gov.uk/id/local-authority/12UE,Huntingdonshire District Council,15/10/2015,176543,R009235,5,1320,Premier It Recruitment Ltd,CR454029,Helpdesk,Hired Staff,100
http://statistics.data.gov.uk/id/local-authority/12UE,Huntingdonshire District Council,22/10/2015,176537,R009367,5,1320,Premier It Recruitment Ltd,CR454029,Helpdesk,Hired Staff,100
http://statistics.data.gov.uk/id/local-authority/12UE,Huntingdonshire District Council,22/10/2015,176536,R009368,5,1320,Premier It Recruitment Ltd,CR454029,Helpdesk,Hired Staff,100
http://statistics.data.gov.uk/id/local-authority/12UE,Huntingdonshire District Council,22/10/2015,176535,R009369,5,1320,Premier It Recruitment Ltd,CR454029,Helpdesk,Hired Staff,100
http://statistics.data.gov.uk/id/local-authority/12UE,Huntingdonshire District Council,29/10/2015,177256,R009450,5,1320,Premier It Recruitment Ltd,CR454029,Helpdesk,Hired Staff,100
http://statistics.data.gov.uk/id/local-authority/12UE,Huntingdonshire District Council,29/10/2015,177257,R009451,5,1320,Premier It Recruitment Ltd,CR454029,Helpdesk,Hired Staff,100
http://statistics.data.gov.uk/id/local-authority/12UE,Huntingdonshire District Council,29/10/2015,177258,R009452,5,1320,Premier It Recruitment Ltd,CR454029,Helpdesk,Hired Staff,100
http://statistics.data.gov.uk/id/local-authority/12UE,Huntingdonshire District Council,08/10/2015,175925,SIN095744,5,11661.6,Eacs Ltd,CR404499,Helpdesk,Equipment Maintenance,511
http://statistics.data.gov.uk/id/local-authority/12UE,Huntingdonshire District Council,01/10/2015,175502,SINV00074869,5,1194,Bist,CR422733,Helpdesk,Network Hardware,205
http://statistics.data.gov.uk/id/local-authority/12UE,Huntingdonshire District Council,08/10/2015,175919,SINV00075226,5,322.32,Bist,CR422733,Helpdesk,Other I T Hardware,203
http://statistics.data.gov.uk/id/local-authority/12UE,Huntingdonshire District Council,01/10/2015,176906,616,5,1458,Elephant & Castle Freehouse & Motel,CR401969,Homelessness Management,Bed & Breakfast Payment,818
http://statistics.data.gov.uk/id/local-authority/12UE,Huntingdonshire District Council,08/10/2015,177298,617,5,1080,Elephant & Castle Freehouse & Motel,CR401969,Homelessness Management,Bed & Breakfast Payment,818
http://statistics.data.gov.uk/id/local-authority/12UE,Huntingdonshire District Council,15/10/2015,177700,618,5,918,Elephant & Castle Freehouse & Motel,CR401969,Homelessness Management,Bed & Breakfast Payment,818
http://statistics.data.gov.uk/id/local-authority/12UE,Huntingdonshire District Council,22/10/2015,178069,619,5,1242,Elephant & Castle Freehouse & Motel,CR401969,Homelessness Management,Bed & Breakfast Payment,818
http://statistics.data.gov.uk/id/local-authority/12UE,Huntingdonshire District Council,29/10/2015,178380,620,5,864,Elephant & Castle Freehouse & Motel,CR401969,Homelessness Management,Bed & Breakfast Payment,818
http://statistics.data.gov.uk/id/local-authority/12UE,Huntingdonshire District Council,22/10/2015,178075,18957,5,1191.4,King Street Housing Society,CR409301,Homelessness Management,Management Charge,733
http://statistics.data.gov.uk/id/local-authority/12UE,Huntingdonshire District Council,15/10/2015,177693,13/10-10/11/15,5,609.6,Move It Quickly,CR479000,Homelessness Management,Removal/Storage,750
http://statistics.data.gov.uk/id/local-authority/12UE,Huntingdonshire District Council,22/10/2015,178076,REDACTED PERSONAL DATA,5,648,Alexanders,CR415843,Homelessness Management,Removal/Storage,750
http://statistics.data.gov.uk/id/local-authority/12UE,Huntingdonshire District Council,22/10/2015,178080,REDACTED PERSONAL DATA,5,420,Move It Quickly,CR479000,Homelessness Management,Removal/Storage,750
http://statistics.data.gov.uk/id/local-authority/12UE,Huntingdonshire District Council,01/10/2015,176907,REDACTED PERSONAL DATA,5,316.8,Move It Quickly,CR479000,Homelessness Management,Removal/Storage,750
http://statistics.data.gov.uk/id/local-authority/12UE,Huntingdonshire District Council,01/10/2015,176783,11393,5,1200,Callcredit Ltd,CR455548,Housing  Benefits Admin,Software,206
http://statistics.data.gov.uk/id/local-authority/12UE,Huntingdonshire District Council,29/10/2015,587557,775473,6,8000,Breckland Council,CR416546,Housing  Benefits Admin,Contribution (Paid Out),810
http://statistics.data.gov.uk/id/local-authority/12UE,Huntingdonshire District Council,29/10/2015,587547,775480,6,32000,Breckland Council,CR416546,Housing  Benefits Admin,Contribution (Paid Out),810
http://statistics.data.gov.uk/id/local-authority/12UE,Huntingdonshire District Council,01/10/2015,176428,3091747,5,-1332,Venn Group Recruitment,CR415403,Housing  Benefits Admin,Hired Staff,100
http://statistics.data.gov.uk/id/local-authority/12UE,Huntingdonshire District Council,01/10/2015,175814,3100779,5,1224,Venn Group Recruitment,CR415403,Housing  Benefits Admin,Hired Staff,100
http://statistics.data.gov.uk/id/local-authority/12UE,Huntingdonshire District Council,15/10/2015,177662,3102995,5,1229.41,Venn Group Recruitment,CR415403,Housing  Benefits Admin,Hired Staff,100
http://statistics.data.gov.uk/id/local-authority/12UE,Huntingdonshire District Council,15/10/2015,177661,3102998,5,1332,Venn Group Recruitment,CR415403,Housing  Benefits Admin,Hired Staff,100
http://statistics.data.gov.uk/id/local-authority/12UE,Huntingdonshire District Council,01/10/2015,176732,3105246,5,1235.16,Venn Group Recruitment,CR415403,Housing  Benefits Admin,Hired Staff,100
http://statistics.data.gov.uk/id/local-authority/12UE,Huntingdonshire District Council,22/10/2015,176784,3105249,5,1332,Venn Group Recruitment,CR415403,Housing  Benefits Admin,Hired Staff,100
http://statistics.data.gov.uk/id/local-authority/12UE,Huntingdonshire District Council,08/10/2015,177120,3107594,5,1226.36,Venn Group Recruitment,CR415403,Housing  Benefits Admin,Hired Staff,100
http://statistics.data.gov.uk/id/local-authority/12UE,Huntingdonshire District Council,08/10/2015,177118,3107597,5,1332,Venn Group Recruitment,CR415403,Housing  Benefits Admin,Hired Staff,100
http://statistics.data.gov.uk/id/local-authority/12UE,Huntingdonshire District Council,15/10/2015,177470,3110017,5,1332,Venn Group Recruitment,CR415403,Housing  Benefits Admin,Hired Staff,100
http://statistics.data.gov.uk/id/local-authority/12UE,Huntingdonshire District Council,22/10/2015,177914,3112263,5,1237.52,Venn Group Recruitment,CR415403,Housing  Benefits Admin,Hired Staff,100
http://statistics.data.gov.uk/id/local-authority/12UE,Huntingdonshire District Council,22/10/2015,177913,3112264,5,1332,Venn Group Recruitment,CR415403,Housing  Benefits Admin,Hired Staff,100
http://statistics.data.gov.uk/id/local-authority/12UE,Huntingdonshire District Council,29/10/2015,178231,3114416,5,1252.08,Venn Group Recruitment,CR415403,Housing  Benefits Admin,Hired Staff,100
http://statistics.data.gov.uk/id/local-authority/12UE,Huntingdonshire District Council,29/10/2015,178230,3114417,5,1332,Venn Group Recruitment,CR415403,Housing  Benefits Admin,Hired Staff,100
http://statistics.data.gov.uk/id/local-authority/12UE,Huntingdonshire District Council,15/10/2015,176741,1208495292,5,79.2,Orange Airtime,CR455799,Housing  Benefits Admin,Telephone &Mobile Phonecharges,240
http://statistics.data.gov.uk/id/local-authority/12UE,Huntingdonshire District Council,01/10/2015,176344,C010504,5,2160,Magnet Solutions,CR416903,Housing  Benefits Admin,Software,206
http://statistics.data.gov.uk/id/local-authority/12UE,Huntingdonshire District Council,01/10/2015,175430,IN16PS15005627,5,278.02,Whistl,CR479965,Housing  Benefits Admin,Postage,231
http://statistics.data.gov.uk/id/local-authority/12UE,Huntingdonshire District Council,08/10/2015,175806,IN16PS15005790,5,209.74,Whistl,CR479965,Housing  Benefits Admin,Postage,231
http://statistics.data.gov.uk/id/local-authority/12UE,Huntingdonshire District Council,22/10/2015,176843,IN16PS15006089,5,483.68,Whistl,CR479965,Housing  Benefits Admin,Postage,231
http://statistics.data.gov.uk/id/local-authority/12UE,Huntingdonshire District Council,29/10/2015,177946,IN16PS15006393,5,349.97,Whistl,CR479965,Housing  Benefits Admin,Postage,231
http://statistics.data.gov.uk/id/local-authority/12UE,Huntingdonshire District Council,01/10/2015,587318,PO27279,1,3443.13,St Ives Town Council,CR000701,Housing  Benefits Admin,Hire Of Rooms,411
http://statistics.data.gov.uk/id/local-authority/12UE,Huntingdonshire District Council,22/10/2015,178074,28263,5,1685.66,Cintra Ltd,CR028441,Housing Management Units,Translation Services,766
http://statistics.data.gov.uk/id/local-authority/12UE,Huntingdonshire District Council,15/10/2015,176741,1208495292,5,19.36,Orange Airtime,CR455799,Housing Management Units,Telephone &Mobile Phonecharges,240
http://statistics.data.gov.uk/id/local-authority/12UE,Huntingdonshire District Council,22/10/2015,177529,481291201,5,1599.19,Swalec,CR407130,Housing Services Other,Electricity,420
http://statistics.data.gov.uk/id/local-authority/12UE,Huntingdonshire District Council,29/10/2015,177087,DIHH/00002876,5,6940.2,Luminus Homes,CR401276,Housing Services Other,Management Charge,733
http://statistics.data.gov.uk/id/local-authority/12UE,Huntingdonshire District Council,15/10/2015,177689,183693,5,20040,Cambridge City Council,CR017896,Housing Strategy,Contribution (Paid Out),810
http://statistics.data.gov.uk/id/local-authority/12UE,Huntingdonshire District Council,01/10/2015,176484,HDC2015-05,5,2572.8,Kelsall Consultancy Ltd,CR422497,Housing Strategy,Consultants,711
http://statistics.data.gov.uk/id/local-authority/12UE,Huntingdonshire District Council,29/10/2015,177070,213532,5,840,Rsa Environmental Health Limited,CR482415,Human Resources,Consultants,711
http://statistics.data.gov.uk/id/local-authority/12UE,Huntingdonshire District Council,15/10/2015,176741,1208495292,5,4.8,Orange Airtime,CR455799,Human Resources,Telephone &Mobile Phonecharges,240
http://statistics.data.gov.uk/id/local-authority/12UE,Huntingdonshire District Council,15/10/2015,177468,9450509/10/15,5,1153.2,Northgate Hr Limited,CR416464,Human Resources,Consultants,711
http://statistics.data.gov.uk/id/local-authority/12UE,Huntingdonshire District Council,29/10/2015,178298,C-0002188177,5,198.16,Computershare Vouchers Ltd,CR412205,Human Resources,Childcare Admin Vouchers,144
http://statistics.data.gov.uk/id/local-authority/12UE,Huntingdonshire District Council,15/10/2015,587812,81602,5,5025,Ems Lifts Ltd,CR479724,Improvement Grants,Mandatory Grants,801
http://statistics.data.gov.uk/id/local-authority/12UE,Huntingdonshire District Council,08/10/2015,587533,18145 JW,4,4015,Premier Service And Installation,CR453810,Improvement Grants,Mandatory Grants,801
http://statistics.data.gov.uk/id/local-authority/12UE,Huntingdonshire District Council,08/10/2015,586528,RD3622 JW,5,12004,Terry Group Ltd,CR033266,Improvement Grants,Mandatory Grants,801
http://statistics.data.gov.uk/id/local-authority/12UE,Huntingdonshire District Council,15/10/2015,176360,1733,5,384,G Ferrara Ltd,CR478949,Industrial Properties,Building Mtce,303
http://statistics.data.gov.uk/id/local-authority/12UE,Huntingdonshire District Council,15/10/2015,176419,GFL1740HDC,5,264,G Ferrara Ltd,CR478949,Industrial Properties,Building Mtce,303
http://statistics.data.gov.uk/id/local-authority/12UE,Huntingdonshire District Council,29/10/2015,178094,GFL1748HDC,5,690,G Ferrara Ltd,CR478949,Industrial Properties,Building Mtce,303
http://statistics.data.gov.uk/id/local-authority/12UE,Huntingdonshire District Council,15/10/2015,175473,JBC/27304/4663,5,762.16,J Breheny Contractors Ltd,CR000314,Industrial Properties,Building Mtce,303
http://statistics.data.gov.uk/id/local-authority/12UE,Huntingdonshire District Council,26/10/2015,178249,SAC12403,5,1922.7,Aitchison Rafferty,CR422382,Industrial Properties,Consultants,711
http://statistics.data.gov.uk/id/local-authority/12UE,Huntingdonshire District Council,26/10/2015,178250,SAC12404,5,709.92,Aitchison Rafferty,CR422382,Industrial Properties,Consultants,711
http://statistics.data.gov.uk/id/local-authority/12UE,Huntingdonshire District Council,01/10/2015,176539,10809,5,521.26,Lightning Recruitment,CR028184,Information Manager,Hired Staff,100
http://statistics.data.gov.uk/id/local-authority/12UE,Huntingdonshire District Council,01/10/2015,176538,10858,5,422.64,Lightning Recruitment,CR028184,Information Manager,Hired Staff,100
http://statistics.data.gov.uk/id/local-authority/12UE,Huntingdonshire District Council,08/10/2015,177255,10905,5,521.26,Lightning Recruitment,CR028184,Information Manager,Hired Staff,100
http://statistics.data.gov.uk/id/local-authority/12UE,Huntingdonshire District Council,08/10/2015,177254,10950,5,316.98,Lightning Recruitment,CR028184,Information Manager,Hired Staff,100
http://statistics.data.gov.uk/id/local-authority/12UE,Huntingdonshire District Council,22/10/2015,177272,1493945,5,806.04,Oracle Corporation Uk Ltd,CR400893,Information Manager,Software,206
http://statistics.data.gov.uk/id/local-authority/12UE,Huntingdonshire District Council,15/10/2015,177716,7006623,5,1140,Idox Information Solutions Ltd,CR481134,Information Manager,Software,206
http://statistics.data.gov.uk/id/local-authority/12UE,Huntingdonshire District Council,15/10/2015,176741,1208495292,5,14.4,Orange Airtime,CR455799,Information Manager,Telephone &Mobile Phonecharges,240
http://statistics.data.gov.uk/id/local-authority/12UE,Huntingdonshire District Council,29/10/2015,177644,13121,5,368.28,Jade Security Services Ltd,CR422256,Interest Received,Cash Collection,702
http://statistics.data.gov.uk/id/local-authority/12UE,Huntingdonshire District Council,15/10/2015,177505,9456,5,758.4,Roger Wilson Electronics,CR028041,Leisure Centres Capital,Building Mtce,303
http://statistics.data.gov.uk/id/local-authority/12UE,Huntingdonshire District Council,22/10/2015,177241,OLSN,5,1398,Richard Sistrom Painting & Decorating,CR422887,Leisure Centres Capital,Building Mtce,303
http://statistics.data.gov.uk/id/local-authority/12UE,Huntingdonshire District Council,01/10/2015,175985,12631,5,600,Roi Software Distribution Ltd,CR422116,Leisure Centres Overall,Printing (External),220
http://statistics.data.gov.uk/id/local-authority/12UE,Huntingdonshire District Council,08/10/2015,176900,15312,5,434.4,Bigprinting,CR416383,Leisure Centres Overall,Printing (External),220
http://statistics.data.gov.uk/id/local-authority/12UE,Huntingdonshire District Council,15/10/2015,176741,1208495292,5,12,Orange Airtime,CR455799,Leisure Centres Overall,Telephone &Mobile Phonecharges,240
http://statistics.data.gov.uk/id/local-authority/12UE,Huntingdonshire District Council,08/10/2015,176895,LF/I047605,5,303.98,Jcdecaux Uk Ltd,CR400706,Leisure Centres Overall,Printing (External),220
http://statistics.data.gov.uk/id/local-authority/12UE,Huntingdonshire District Council,29/10/2015,177251,5580,5,1732.8,Personal Life Coaching,CR422067,Leisure Development,Equipment,500
http://statistics.data.gov.uk/id/local-authority/12UE,Huntingdonshire District Council,01/10/2015,176067,38247,5,374,Clanpress King'S Lynn Ltd,CR413516,Leisure Development,Printing (External),220
http://statistics.data.gov.uk/id/local-authority/12UE,Huntingdonshire District Council,15/10/2015,176741,1208495292,5,36,Orange Airtime,CR455799,Leisure Development,Telephone &Mobile Phonecharges,240
http://statistics.data.gov.uk/id/local-authority/12UE,Huntingdonshire District Council,22/10/2015,177948,9050692620,5,221.18,Royal Mail,CR027083,Leisure Development,Postage,231
http://statistics.data.gov.uk/id/local-authority/12UE,Huntingdonshire District Council,15/10/2015,177481,GW15118F,5,384,Grafham Water Centre,CR416894,Leisure Development,Instructors/Tutors,720
http://statistics.data.gov.uk/id/local-authority/12UE,Huntingdonshire District Council,01/10/2015,175942,PH145188,5,284.52,Physical Company,CR407014,Leisure Development,Equipment,500
http://statistics.data.gov.uk/id/local-authority/12UE,Huntingdonshire District Council,01/10/2015,175263,2733,5,1650,Adams Autos,CR422066,Licences,Vehicle Inspection,618
http://statistics.data.gov.uk/id/local-authority/12UE,Huntingdonshire District Council,15/10/2015,176741,1208495292,5,7.2,Orange Airtime,CR455799,Licences,Telephone &Mobile Phonecharges,240
http://statistics.data.gov.uk/id/local-authority/12UE,Huntingdonshire District Council,01/10/2015,175449,T25410,5,1189.08,Mogo Uk,CR410378,Licences,Licence Plates,564
http://statistics.data.gov.uk/id/local-authority/12UE,Huntingdonshire District Council,15/10/2015,176741,1208495292,5,24,Orange Airtime,CR455799,Member Allowances & Support,Telephone &Mobile Phonecharges,240
http://statistics.data.gov.uk/id/local-authority/12UE,Huntingdonshire District Council,01/10/2015,175536,742878104/0915,5,6.9,Virgin Media Business,CR033120,Member Allowances & Support,I T Line Rental,248
http://statistics.data.gov.uk/id/local-authority/12UE,Huntingdonshire District Council,29/10/2015,177699,742878104/1015,5,6.9,Virgin Media Business,CR033120,Member Allowances & Support,I T Line Rental,248
http://statistics.data.gov.uk/id/local-authority/12UE,Huntingdonshire District Council,29/10/2015,177080,INV 2007,7,414,Tim George,CR415398,Member Allowances & Support,Support Of External Entity,814
http://statistics.data.gov.uk/id/local-authority/12UE,Huntingdonshire District Council,01/10/2015,175199,900715038,5,850.2,Portakabin Ltd,CR478566,Miscellaneous Grants,Hire Of Rooms,411
http://statistics.data.gov.uk/id/local-authority/12UE,Huntingdonshire District Council,01/10/2015,175202,900715039,5,807.04,Portakabin Ltd,CR478566,Miscellaneous Grants,Hire Of Rooms,411
http://statistics.data.gov.uk/id/local-authority/12UE,Huntingdonshire District Council,29/10/2015,178013,900718197,5,850.2,Portakabin Ltd,CR478566,Miscellaneous Grants,Hire Of Rooms,411
http://statistics.data.gov.uk/id/local-authority/12UE,Huntingdonshire District Council,29/10/2015,178014,900718198,5,807.04,Portakabin Ltd,CR478566,Miscellaneous Grants,Hire Of Rooms,411
http://statistics.data.gov.uk/id/local-authority/12UE,Huntingdonshire District Council,01/10/2015,176902,3QTR GRANT,5,2500,Care Network,CR477579,Miscellaneous Grants,Grants (Paid Out),800
http://statistics.data.gov.uk/id/local-authority/12UE,Huntingdonshire District Council,01/10/2015,176899,3QTR GRANT,4,4425,Hunts Shopmobility,CR429218,Miscellaneous Grants,Grants (Paid Out),800
http://statistics.data.gov.uk/id/local-authority/12UE,Huntingdonshire District Council,01/10/2015,587327,3QTR GRANT,4,26328.88,Rural Cambs Citzens Advice Bureau,CR455454,Miscellaneous Grants,Grants (Paid Out),800
http://statistics.data.gov.uk/id/local-authority/12UE,Huntingdonshire District Council,01/10/2015,176904,3RD QTR GRANT,5,4750,Disability Information Service Huntingdonshir,CR408884,Miscellaneous Grants,Grants (Paid Out),800
http://statistics.data.gov.uk/id/local-authority/12UE,Huntingdonshire District Council,01/10/2015,176903,3RD QTR GRANT,4,9250,Huntingdonshire  Volunteer Centre,CR410643,Miscellaneous Grants,Grants (Paid Out),800
http://statistics.data.gov.uk/id/local-authority/12UE,Huntingdonshire District Council,01/10/2015,587325,COMM CHEST GRT,4,2330,1st Brampton Scout Group,CR422089,Miscellaneous Grants,Grants (Paid Out),800
http://statistics.data.gov.uk/id/local-authority/12UE,Huntingdonshire District Council,15/10/2015,587813,COMM CHEST GRT,4,1691,Abbotsley Village Hall,CR422136,Miscellaneous Grants,Grants (Paid Out),800
http://statistics.data.gov.uk/id/local-authority/12UE,Huntingdonshire District Council,29/10/2015,587815,COMM CHEST GRT,4,390,Cifa Majorettes,CR422127,Miscellaneous Grants,Grants (Paid Out),800
http://statistics.data.gov.uk/id/local-authority/12UE,Huntingdonshire District Council,22/10/2015,178031,COMM CHEST GRT,4,575,Ellington Gala,CR423046,Miscellaneous Grants,Grants (Paid Out),800
http://statistics.data.gov.uk/id/local-authority/12UE,Huntingdonshire District Council,22/10/2015,588178,COMM CHEST GRT,4,4245,Fusion Family & Youth Projects,CR423027,Miscellaneous Grants,Grants (Paid Out),800
http://statistics.data.gov.uk/id/local-authority/12UE,Huntingdonshire District Council,22/10/2015,588176,COMM CHEST GRT,4,2500,Huntingdon Swimmin Club,CR423028,Miscellaneous Grants,Grants (Paid Out),800
http://statistics.data.gov.uk/id/local-authority/12UE,Huntingdonshire District Council,15/10/2015,587814,COMM CHEST GRT,5,3400,Old Weston Village Hall,CR010173,Miscellaneous Grants,Grants (Paid Out),800
http://statistics.data.gov.uk/id/local-authority/12UE,Huntingdonshire District Council,29/10/2015,588604,COMM CHEST GRT,4,750,Sawtry Methodist Indoor Bowling Club,CR422122,Miscellaneous Grants,Grants (Paid Out),800
http://statistics.data.gov.uk/id/local-authority/12UE,Huntingdonshire District Council,01/10/2015,587326,COMM CHEST GRT,4,2125,Southoe Village Hall,CR422120,Miscellaneous Grants,Grants (Paid Out),800
http://statistics.data.gov.uk/id/local-authority/12UE,Huntingdonshire District Council,22/10/2015,588177,COMMCHEST GRT,4,4000,Applepips,CR479002,Miscellaneous Grants,Grants (Paid Out),800
http://statistics.data.gov.uk/id/local-authority/12UE,Huntingdonshire District Council,08/10/2015,587536,COMMUNITY CHEST,4,3400,Hunts Community Youth Orchestra,CR422091,Miscellaneous Grants,Grants (Paid Out),800
http://statistics.data.gov.uk/id/local-authority/12UE,Huntingdonshire District Council,29/10/2015,178238,1912,5,5700,Inform Cpi,CR422313,N N D R Administration,Consultants,711
http://statistics.data.gov.uk/id/local-authority/12UE,Huntingdonshire District Council,22/10/2015,177467,147928,5,796.02,Direct Access Supplies Ltd,CR455267,Oak Tree Health Centre,Building Mtce,303
http://statistics.data.gov.uk/id/local-authority/12UE,Huntingdonshire District Council,01/10/2015,175820,4309,5,1814.65,Oastlodge Ltd,CR479114,Off Street Parking,Land Lease,416
http://statistics.data.gov.uk/id/local-authority/12UE,Huntingdonshire District Council,01/10/2015,175862,32858,5,85360.31,Cbre Richard Ellis Ltd,CR487227,Off Street Parking,Contribution (Paid Out),810
http://statistics.data.gov.uk/id/local-authority/12UE,Huntingdonshire District Council,01/10/2015,175864,33622,5,-85360.31,Cbre Richard Ellis Ltd,CR487227,Off Street Parking,Contribution (Paid Out),810
http://statistics.data.gov.uk/id/local-authority/12UE,Huntingdonshire District Council,08/10/2015,177111,34641,5,42726.29,Cbre Richard Ellis Ltd,CR487227,Off Street Parking,Contribution (Paid Out),810
http://statistics.data.gov.uk/id/local-authority/12UE,Huntingdonshire District Council,22/10/2015,177150,106821,5,3610.33,Cale Briparc Ltd,CR401137,Off Street Parking,Car Park Machines,522
http://statistics.data.gov.uk/id/local-authority/12UE,Huntingdonshire District Council,29/10/2015,177561,107064,5,339.9,Cale Briparc Ltd,CR401137,Off Street Parking,Car Park Machines,522
http://statistics.data.gov.uk/id/local-authority/12UE,Huntingdonshire District Council,01/10/2015,175470,542849,5,378.2,Ecocleen Services Limited,CR406985,Off Street Parking,Building Cleaning,440
http://statistics.data.gov.uk/id/local-authority/12UE,Huntingdonshire District Council,22/10/2015,176745,543089,5,774,Ecocleen Services Limited,CR406985,Off Street Parking,Building Mtce,303
http://statistics.data.gov.uk/id/local-authority/12UE,Huntingdonshire District Council,29/10/2015,177675,543559,5,378.2,Ecocleen Services Limited,CR406985,Off Street Parking,Building Cleaning,440
http://statistics.data.gov.uk/id/local-authority/12UE,Huntingdonshire District Council,15/10/2015,177102,491225588,5,340.11,Swalec,CR407130,Off Street Parking,Electricity,420
http://statistics.data.gov.uk/id/local-authority/12UE,Huntingdonshire District Council,15/10/2015,176741,1208495292,5,14.4,Orange Airtime,CR455799,Off Street Parking,Telephone &Mobile Phonecharges,240
http://statistics.data.gov.uk/id/local-authority/12UE,Huntingdonshire District Council,15/10/2015,177249,11398241360,5,264.38,E-On Energy,CR416430,Off Street Parking,Electricity,420
http://statistics.data.gov.uk/id/local-authority/12UE,Huntingdonshire District Council,15/10/2015,175466,JBC/27301/4663/,5,560.3,J Breheny Contractors Ltd,CR000314,Off Street Parking,Sitework,359
http://statistics.data.gov.uk/id/local-authority/12UE,Huntingdonshire District Council,15/10/2015,175467,JBC/27302/4663/,5,412.92,J Breheny Contractors Ltd,CR000314,Off Street Parking,Sitework,359
http://statistics.data.gov.uk/id/local-authority/12UE,Huntingdonshire District Council,15/10/2015,175469,JBC/27303/4663/,5,2158.22,J Breheny Contractors Ltd,CR000314,Off Street Parking,Sitework,359
http://statistics.data.gov.uk/id/local-authority/12UE,Huntingdonshire District Council,15/10/2015,175476,JBC/27306/4663/,5,412.92,J Breheny Contractors Ltd,CR000314,Off Street Parking,Sitework,359
http://statistics.data.gov.uk/id/local-authority/12UE,Huntingdonshire District Council,29/10/2015,177911,P020144240,5,921.6,Stannah Lifts,CR088939,Off Street Parking,Plant & Equipment Maintenance,380
http://statistics.data.gov.uk/id/local-authority/12UE,Huntingdonshire District Council,01/10/2015,175639,12,5,257.99,Skl Property Services,CR422708,One Leisure Huntingdon,Building Mtce,303
http://statistics.data.gov.uk/id/local-authority/12UE,Huntingdonshire District Council,29/10/2015,177540,13,5,439.9,Skl Property Services,CR422708,One Leisure Huntingdon,Building Mtce,303
http://statistics.data.gov.uk/id/local-authority/12UE,Huntingdonshire District Council,29/10/2015,176884,9444,5,1089.56,Roger Wilson Electronics,CR028041,One Leisure Huntingdon,Building Mtce,303
http://statistics.data.gov.uk/id/local-authority/12UE,Huntingdonshire District Council,29/10/2015,178035,9464,5,1645.2,Roger Wilson Electronics,CR028041,One Leisure Huntingdon,Building Mtce,303
http://statistics.data.gov.uk/id/local-authority/12UE,Huntingdonshire District Council,01/10/2015,175985,12631,5,1440,Roi Software Distribution Ltd,CR422116,One Leisure Huntingdon,Printing (External),220
http://statistics.data.gov.uk/id/local-authority/12UE,Huntingdonshire District Council,29/10/2015,177644,13121,5,301.32,Jade Security Services Ltd,CR422256,One Leisure Huntingdon,Cash Collection,702
http://statistics.data.gov.uk/id/local-authority/12UE,Huntingdonshire District Council,01/10/2015,175396,59947,5,348.47,Snackline Direct Ltd,CR478090,One Leisure Huntingdon,Vending Materials,560
http://statistics.data.gov.uk/id/local-authority/12UE,Huntingdonshire District Council,08/10/2015,177103,60108,5,225.18,Snackline Direct Ltd,CR478090,One Leisure Huntingdon,Bar Provisions,558
http://statistics.data.gov.uk/id/local-authority/12UE,Huntingdonshire District Council,08/10/2015,177103,60108,5,46.4,Snackline Direct Ltd,CR478090,One Leisure Huntingdon,Confectionery,572
http://statistics.data.gov.uk/id/local-authority/12UE,Huntingdonshire District Council,01/10/2015,176891,61456,5,144,Clubnet Limited,CR422543,One Leisure Huntingdon,Advertising/Promoting Services,255
http://statistics.data.gov.uk/id/local-authority/12UE,Huntingdonshire District Council,15/10/2015,177290,65916,5,4761.49,Haven Power Ltd,CR455940,One Leisure Huntingdon,Electricity,420
http://statistics.data.gov.uk/id/local-authority/12UE,Huntingdonshire District Council,22/10/2015,177141,74479,5,1280.7,Servicesport (Uk) Ltd,CR422867,One Leisure Huntingdon,Equipment Maintenance,511
http://statistics.data.gov.uk/id/local-authority/12UE,Huntingdonshire District Council,15/10/2015,175983,75594,5,804,Gladstone Mrm,CR405717,One Leisure Huntingdon,Software,206
http://statistics.data.gov.uk/id/local-authority/12UE,Huntingdonshire District Council,08/10/2015,176876,389441,5,14.16,South Lincs Food Service,CR033415,One Leisure Huntingdon,Bar Provisions,558
http://statistics.data.gov.uk/id/local-authority/12UE,Huntingdonshire District Council,08/10/2015,176876,389441,5,193.74,South Lincs Food Service,CR033415,One Leisure Huntingdon,Catering Materials,559
http://statistics.data.gov.uk/id/local-authority/12UE,Huntingdonshire District Council,08/10/2015,176876,389441,5,131.11,South Lincs Food Service,CR033415,One Leisure Huntingdon,Confectionery,572
http://statistics.data.gov.uk/id/local-authority/12UE,Huntingdonshire District Council,08/10/2015,176874,394799,5,77.3,South Lincs Food Service,CR033415,One Leisure Huntingdon,Bar Provisions,558
http://statistics.data.gov.uk/id/local-authority/12UE,Huntingdonshire District Council,08/10/2015,176874,394799,5,115.49,South Lincs Food Service,CR033415,One Leisure Huntingdon,Catering Materials,559
http://statistics.data.gov.uk/id/local-authority/12UE,Huntingdonshire District Council,08/10/2015,176874,394799,5,213.69,South Lincs Food Service,CR033415,One Leisure Huntingdon,Confectionery,572
http://statistics.data.gov.uk/id/local-authority/12UE,Huntingdonshire District Council,29/10/2015,177232,776210,5,300.36,J P Lennard Ltd,CR028595,One Leisure Huntingdon,Sports Equipment,524
http://statistics.data.gov.uk/id/local-authority/12UE,Huntingdonshire District Council,15/10/2015,176396,3707284,1,997.2,Espo,CR006566,One Leisure Huntingdon,Equipment,500
http://statistics.data.gov.uk/id/local-authority/12UE,Huntingdonshire District Council,29/10/2015,178034,15011838,5,1447.2,Technogym Uk Ltd,CR033037,One Leisure Huntingdon,Equipment,500
http://statistics.data.gov.uk/id/local-authority/12UE,Huntingdonshire District Council,22/10/2015,177940,103528071,5,1848.27,Anglian Water,CR000071,One Leisure Huntingdon,Water & Sewerage,432
http://statistics.data.gov.uk/id/local-authority/12UE,Huntingdonshire District Council,22/10/2015,177939,110638988,5,1137.46,Anglian Water,CR000071,One Leisure Huntingdon,Water & Sewerage,432
http://statistics.data.gov.uk/id/local-authority/12UE,Huntingdonshire District Council,29/10/2015,177443,126877786,5,2694.48,Anglian Water,CR000071,One Leisure Huntingdon,Water & Sewerage,432
http://statistics.data.gov.uk/id/local-authority/12UE,Huntingdonshire District Council,22/10/2015,177666,341225796,5,2867.13,Swalec,CR407130,One Leisure Huntingdon,Electricity,420
http://statistics.data.gov.uk/id/local-authority/12UE,Huntingdonshire District Council,22/10/2015,177725,381239505,5,594.28,Swalec,CR407130,One Leisure Huntingdon,Electricity,420
http://statistics.data.gov.uk/id/local-authority/12UE,Huntingdonshire District Council,15/10/2015,177449,12489088110,5,4187.02,E-On Energy,CR416430,One Leisure Huntingdon,Gas,421
http://statistics.data.gov.uk/id/local-authority/12UE,Huntingdonshire District Council,15/10/2015,177453,12489088970,5,655.03,E-On Energy,CR416430,One Leisure Huntingdon,Gas,421
http://statistics.data.gov.uk/id/local-authority/12UE,Huntingdonshire District Council,29/10/2015,177230,44SI4406515,5,547.64,Brenntag Uk Ltd,CR015017,One Leisure Huntingdon,Chemicals,551
http://statistics.data.gov.uk/id/local-authority/12UE,Huntingdonshire District Council,01/10/2015,175536,742878104/0915,5,1.92,Virgin Media Business,CR033120,One Leisure Huntingdon,Telephone &Mobile Phonecharges,240
http://statistics.data.gov.uk/id/local-authority/12UE,Huntingdonshire District Council,29/10/2015,177699,742878104/1015,5,0.4,Virgin Media Business,CR033120,One Leisure Huntingdon,Telephone &Mobile Phonecharges,240
http://statistics.data.gov.uk/id/local-authority/12UE,Huntingdonshire District Council,08/10/2015,176547,INV000060,5,312,Leisure Provisions,CR455154,One Leisure Huntingdon,Stationery,225
http://statistics.data.gov.uk/id/local-authority/12UE,Huntingdonshire District Council,15/10/2015,175463,JBC/27298/4663/,5,1081.43,J Breheny Contractors Ltd,CR000314,One Leisure Huntingdon,Building Mtce,303
http://statistics.data.gov.uk/id/local-authority/12UE,Huntingdonshire District Council,29/10/2015,177100,SIN003408,5,1185.49,Enterprise Support Services Uk Ltd,CR422509,One Leisure Huntingdon,Building Cleaning,440
http://statistics.data.gov.uk/id/local-authority/12UE,Huntingdonshire District Council,29/10/2015,177127,9446,5,450.12,Roger Wilson Electronics,CR028041,One Leisure Ramsey,Building Mtce,303
http://statistics.data.gov.uk/id/local-authority/12UE,Huntingdonshire District Council,29/10/2015,177127,9446,5,477.6,Roger Wilson Electronics,CR028041,One Leisure Ramsey,Equipment,500
http://statistics.data.gov.uk/id/local-authority/12UE,Huntingdonshire District Council,01/10/2015,175985,12631,5,960,Roi Software Distribution Ltd,CR422116,One Leisure Ramsey,Printing (External),220
http://statistics.data.gov.uk/id/local-authority/12UE,Huntingdonshire District Council,29/10/2015,177644,13121,5,83.7,Jade Security Services Ltd,CR422256,One Leisure Ramsey,Cash Collection,702
http://statistics.data.gov.uk/id/local-authority/12UE,Huntingdonshire District Council,22/10/2015,177139,74480,5,691.52,Servicesport (Uk) Ltd,CR422867,One Leisure Ramsey,Equipment Maintenance,511
http://statistics.data.gov.uk/id/local-authority/12UE,Huntingdonshire District Council,29/10/2015,177937,74898,5,330,Servicesport (Uk) Ltd,CR422867,One Leisure Ramsey,Equipment Maintenance,511
http://statistics.data.gov.uk/id/local-authority/12UE,Huntingdonshire District Council,15/10/2015,175983,75594,5,804,Gladstone Mrm,CR405717,One Leisure Ramsey,Software,206
http://statistics.data.gov.uk/id/local-authority/12UE,Huntingdonshire District Council,15/10/2015,175998,3070647,5,838.28,First In Service Ltd,CR422285,One Leisure Ramsey,Building Mtce,303
http://statistics.data.gov.uk/id/local-authority/12UE,Huntingdonshire District Council,22/10/2015,176517,3071963,5,535.76,First In Service Ltd,CR422285,One Leisure Ramsey,Building Mtce,303
http://statistics.data.gov.uk/id/local-authority/12UE,Huntingdonshire District Council,08/10/2015,177040,8877211,5,446.03,Rotowash Uk Ltd,CR400863,One Leisure Ramsey,Equipment Maintenance,511
http://statistics.data.gov.uk/id/local-authority/12UE,Huntingdonshire District Council,01/10/2015,175967,10095175,5,329.15,Lucozade Ribena Suntory Ltd,CR422660,One Leisure Ramsey,Vending Materials,560
http://statistics.data.gov.uk/id/local-authority/12UE,Huntingdonshire District Council,29/10/2015,178034,15011838,5,1447.2,Technogym Uk Ltd,CR033037,One Leisure Ramsey,Equipment,500
http://statistics.data.gov.uk/id/local-authority/12UE,Huntingdonshire District Council,22/10/2015,177920,126881440,5,1701.51,Anglian Water,CR000071,One Leisure Ramsey,Water & Sewerage,432
http://statistics.data.gov.uk/id/local-authority/12UE,Huntingdonshire District Council,15/10/2015,177456,12489090790,5,1116.73,E-On Energy,CR416430,One Leisure Ramsey,Gas,421
http://statistics.data.gov.uk/id/local-authority/12UE,Huntingdonshire District Council,15/10/2015,177659,9550DC,5,1007.66,Asp,CR455201,One Leisure Ramsey,Software,206
http://statistics.data.gov.uk/id/local-authority/12UE,Huntingdonshire District Council,29/10/2015,177100,SIN003408,5,798.4,Enterprise Support Services Uk Ltd,CR422509,One Leisure Ramsey,Building Cleaning,440
http://statistics.data.gov.uk/id/local-authority/12UE,Huntingdonshire District Council,29/10/2015,177129,9447,5,327,Roger Wilson Electronics,CR028041,One Leisure Sawtry,Building Mtce,303
http://statistics.data.gov.uk/id/local-authority/12UE,Huntingdonshire District Council,01/10/2015,175985,12631,5,960,Roi Software Distribution Ltd,CR422116,One Leisure Sawtry,Printing (External),220
http://statistics.data.gov.uk/id/local-authority/12UE,Huntingdonshire District Council,29/10/2015,177644,13121,5,83.7,Jade Security Services Ltd,CR422256,One Leisure Sawtry,Cash Collection,702
http://statistics.data.gov.uk/id/local-authority/12UE,Huntingdonshire District Council,22/10/2015,177137,74481,5,633.31,Servicesport (Uk) Ltd,CR422867,One Leisure Sawtry,Equipment Maintenance,511
http://statistics.data.gov.uk/id/local-authority/12UE,Huntingdonshire District Council,15/10/2015,175983,75594,5,804,Gladstone Mrm,CR405717,One Leisure Sawtry,Software,206
http://statistics.data.gov.uk/id/local-authority/12UE,Huntingdonshire District Council,29/10/2015,178034,15011838,5,727.2,Technogym Uk Ltd,CR033037,One Leisure Sawtry,Equipment,500
http://statistics.data.gov.uk/id/local-authority/12UE,Huntingdonshire District Council,22/10/2015,177669,941240466,5,3646.87,Swalec,CR407130,One Leisure Sawtry,Electricity,420
http://statistics.data.gov.uk/id/local-authority/12UE,Huntingdonshire District Council,29/10/2015,177941,2102215236,5,9.56,Booker Cash And Carry,CR027611,One Leisure Sawtry,Materials,550
http://statistics.data.gov.uk/id/local-authority/12UE,Huntingdonshire District Council,29/10/2015,177941,2102215236,5,272.63,Booker Cash And Carry,CR027611,One Leisure Sawtry,Vending Materials,560
http://statistics.data.gov.uk/id/local-authority/12UE,Huntingdonshire District Council,15/10/2015,177452,12489088700,5,1583.48,E-On Energy,CR416430,One Leisure Sawtry,Gas,421
http://statistics.data.gov.uk/id/local-authority/12UE,Huntingdonshire District Council,15/10/2015,177659,9550DC,5,1007.66,Asp,CR455201,One Leisure Sawtry,Software,206
http://statistics.data.gov.uk/id/local-authority/12UE,Huntingdonshire District Council,01/10/2015,175430,IN16PS15005627,5,45.94,Whistl,CR479965,One Leisure Sawtry,Postage,231
http://statistics.data.gov.uk/id/local-authority/12UE,Huntingdonshire District Council,29/10/2015,177100,SIN003408,5,874.02,Enterprise Support Services Uk Ltd,CR422509,One Leisure Sawtry,Building Cleaning,440
http://statistics.data.gov.uk/id/local-authority/12UE,Huntingdonshire District Council,29/10/2015,178057,250,5,1545.6,2 Ton Productions,CR410213,One Leisure St Ives,Entertainments Inc Cable Tv,744
http://statistics.data.gov.uk/id/local-authority/12UE,Huntingdonshire District Council,22/10/2015,176893,585,5,1079.46,Pool Maintenance Ltd,CR422505,One Leisure St Ives,Plant & Equipment Maintenance,380
http://statistics.data.gov.uk/id/local-authority/12UE,Huntingdonshire District Council,01/10/2015,176693,1012,5,2674,Thank Abba For The Music Limited,CR422165,One Leisure St Ives,Entertainments Inc Cable Tv,744
http://statistics.data.gov.uk/id/local-authority/12UE,Huntingdonshire District Council,22/10/2015,178011,6142,5,1375.5,All-Electric Productions,CR422846,One Leisure St Ives,Entertainments Inc Cable Tv,744
http://statistics.data.gov.uk/id/local-authority/12UE,Huntingdonshire District Council,22/10/2015,176845,9439,5,543.37,Roger Wilson Electronics,CR028041,One Leisure St Ives,Building Mtce,303
http://statistics.data.gov.uk/id/local-authority/12UE,Huntingdonshire District Council,29/10/2015,176883,9443,5,751.2,Roger Wilson Electronics,CR028041,One Leisure St Ives,Building Mtce,303
http://statistics.data.gov.uk/id/local-authority/12UE,Huntingdonshire District Council,29/10/2015,178030,9462,5,1795.37,Roger Wilson Electronics,CR028041,One Leisure St Ives,Building Mtce,303
http://statistics.data.gov.uk/id/local-authority/12UE,Huntingdonshire District Council,01/10/2015,175985,12631,5,770.3,Roi Software Distribution Ltd,CR422116,One Leisure St Ives,Printing (External),220
http://statistics.data.gov.uk/id/local-authority/12UE,Huntingdonshire District Council,29/10/2015,177644,13121,5,217.62,Jade Security Services Ltd,CR422256,One Leisure St Ives,Cash Collection,702
http://statistics.data.gov.uk/id/local-authority/12UE,Huntingdonshire District Council,08/10/2015,176898,15308,5,404.4,Bigprinting,CR416383,One Leisure St Ives,Printing (External),220
http://statistics.data.gov.uk/id/local-authority/12UE,Huntingdonshire District Council,15/10/2015,176392,36274,5,381.6,Mark Harrod Ltd,CR416142,One Leisure St Ives,Sports Equipment,524
http://statistics.data.gov.uk/id/local-authority/12UE,Huntingdonshire District Council,08/10/2015,177142,40299,5,300,Dings Entertainment,CR412228,One Leisure St Ives,Entertainments Inc Cable Tv,744
http://statistics.data.gov.uk/id/local-authority/12UE,Huntingdonshire District Council,08/10/2015,177039,46531,5,1360.5,Strictly Tables And Chairs Ltd,CR455527,One Leisure St Ives,Furniture,200
http://statistics.data.gov.uk/id/local-authority/12UE,Huntingdonshire District Council,29/10/2015,177589,51014,5,300,Chesterton Carpets,CR423026,One Leisure St Ives,Building Mtce,303
http://statistics.data.gov.uk/id/local-authority/12UE,Huntingdonshire District Council,29/10/2015,177492,61072,5,62.35,Snackline Direct Ltd,CR478090,One Leisure St Ives,Bar Provisions,558
http://statistics.data.gov.uk/id/local-authority/12UE,Huntingdonshire District Council,29/10/2015,177492,61072,5,77.51,Snackline Direct Ltd,CR478090,One Leisure St Ives,Catering Materials,559
http://statistics.data.gov.uk/id/local-authority/12UE,Huntingdonshire District Council,29/10/2015,177492,61072,5,63.79,Snackline Direct Ltd,CR478090,One Leisure St Ives,Confectionery,572
http://statistics.data.gov.uk/id/local-authority/12UE,Huntingdonshire District Council,29/10/2015,177492,61072,5,66.42,Snackline Direct Ltd,CR478090,One Leisure St Ives,Vending Materials,560
http://statistics.data.gov.uk/id/local-authority/12UE,Huntingdonshire District Council,15/10/2015,177307,65919,5,10341.39,Haven Power Ltd,CR455940,One Leisure St Ives,Electricity,420
http://statistics.data.gov.uk/id/local-authority/12UE,Huntingdonshire District Council,15/10/2015,177295,65922,5,2756.64,Haven Power Ltd,CR455940,One Leisure St Ives,Electricity,420
http://statistics.data.gov.uk/id/local-authority/12UE,Huntingdonshire District Council,22/10/2015,177135,74482,5,2068.8,Servicesport (Uk) Ltd,CR422867,One Leisure St Ives,Equipment Maintenance,511
http://statistics.data.gov.uk/id/local-authority/12UE,Huntingdonshire District Council,29/10/2015,177942,74896,5,330,Servicesport (Uk) Ltd,CR422867,One Leisure St Ives,Equipment Maintenance,511
http://statistics.data.gov.uk/id/local-authority/12UE,Huntingdonshire District Council,15/10/2015,175983,75594,5,804,Gladstone Mrm,CR405717,One Leisure St Ives,Software,206
http://statistics.data.gov.uk/id/local-authority/12UE,Huntingdonshire District Council,29/10/2015,177651,83942,5,960,Harry Dalby Engineering Ltd,CR455770,One Leisure St Ives,Building Mtce,303
http://statistics.data.gov.uk/id/local-authority/12UE,Huntingdonshire District Council,01/10/2015,175595,258573,5,62.35,Westminster Foodservice,CR455156,One Leisure St Ives,Bar Provisions,558
http://statistics.data.gov.uk/id/local-authority/12UE,Huntingdonshire District Council,01/10/2015,175595,258573,5,211.9,Westminster Foodservice,CR455156,One Leisure St Ives,Catering Materials,559
http://statistics.data.gov.uk/id/local-authority/12UE,Huntingdonshire District Council,29/10/2015,177163,260290,5,94.75,Westminster Foodservice,CR455156,One Leisure St Ives,Bar Provisions,558
http://statistics.data.gov.uk/id/local-authority/12UE,Huntingdonshire District Council,29/10/2015,177163,260290,5,155.89,Westminster Foodservice,CR455156,One Leisure St Ives,Catering Materials,559
http://statistics.data.gov.uk/id/local-authority/12UE,Huntingdonshire District Council,29/10/2015,177163,260290,5,21.6,Westminster Foodservice,CR455156,One Leisure St Ives,Materials,550
http://statistics.data.gov.uk/id/local-authority/12UE,Huntingdonshire District Council,08/10/2015,176403,391464,5,294.02,South Lincs Food Service,CR033415,One Leisure St Ives,Catering Materials,559
http://statistics.data.gov.uk/id/local-authority/12UE,Huntingdonshire District Council,08/10/2015,176403,391464,5,52.76,South Lincs Food Service,CR033415,One Leisure St Ives,Confectionery,572
http://statistics.data.gov.uk/id/local-authority/12UE,Huntingdonshire District Council,22/10/2015,176764,394068,5,237.89,South Lincs Food Service,CR033415,One Leisure St Ives,Catering Materials,559
http://statistics.data.gov.uk/id/local-authority/12UE,Huntingdonshire District Council,22/10/2015,176764,394068,5,34.82,South Lincs Food Service,CR033415,One Leisure St Ives,Confectionery,572
http://statistics.data.gov.uk/id/local-authority/12UE,Huntingdonshire District Council,22/10/2015,176766,394069,5,276.8,South Lincs Food Service,CR033415,One Leisure St Ives,Catering Materials,559
http://statistics.data.gov.uk/id/local-authority/12UE,Huntingdonshire District Council,29/10/2015,177432,506202,5,462,Metro Rod Ltd,CR479927,One Leisure St Ives,Building Mtce,303
http://statistics.data.gov.uk/id/local-authority/12UE,Huntingdonshire District Council,01/10/2015,175652,575151,5,622.07,Lacons,CR422174,One Leisure St Ives,Bar Provisions,558
http://statistics.data.gov.uk/id/local-authority/12UE,Huntingdonshire District Council,01/10/2015,175652,575151,5,37.63,Lacons,CR422174,One Leisure St Ives,Gas Cylinders (Incl. Bars),567
http://statistics.data.gov.uk/id/local-authority/12UE,Huntingdonshire District Council,01/10/2015,175966,575427,5,425.35,Lacons,CR422174,One Leisure St Ives,Bar Provisions,558
http://statistics.data.gov.uk/id/local-authority/12UE,Huntingdonshire District Council,01/10/2015,175966,575427,5,18.82,Lacons,CR422174,One Leisure St Ives,Gas Cylinders (Incl. Bars),567
http://statistics.data.gov.uk/id/local-authority/12UE,Huntingdonshire District Council,08/10/2015,175964,576539,5,343.73,Lacons,CR422174,One Leisure St Ives,Bar Provisions,558
http://statistics.data.gov.uk/id/local-authority/12UE,Huntingdonshire District Council,08/10/2015,175964,576539,5,37.63,Lacons,CR422174,One Leisure St Ives,Gas Cylinders (Incl. Bars),567
http://statistics.data.gov.uk/id/local-authority/12UE,Huntingdonshire District Council,08/10/2015,176389,577540,5,216.67,Lacons,CR422174,One Leisure St Ives,Bar Provisions,558
http://statistics.data.gov.uk/id/local-authority/12UE,Huntingdonshire District Council,08/10/2015,176389,577540,5,37.63,Lacons,CR422174,One Leisure St Ives,Gas Cylinders (Incl. Bars),567
http://statistics.data.gov.uk/id/local-authority/12UE,Huntingdonshire District Council,22/10/2015,177060,2544748,5,270,Archant Herts & Cambs,CR415764,One Leisure St Ives,Advertising/Promoting Services,255
http://statistics.data.gov.uk/id/local-authority/12UE,Huntingdonshire District Council,22/10/2015,176842,3720266,1,479.4,Espo,CR006566,One Leisure St Ives,Cleaning Materials,443
http://statistics.data.gov.uk/id/local-authority/12UE,Huntingdonshire District Council,08/10/2015,175958,11675476,5,258.69,Nisbets,CR412311,One Leisure St Ives,Materials,550
http://statistics.data.gov.uk/id/local-authority/12UE,Huntingdonshire District Council,29/10/2015,178034,15011838,5,2167.2,Technogym Uk Ltd,CR033037,One Leisure St Ives,Equipment,500
http://statistics.data.gov.uk/id/local-authority/12UE,Huntingdonshire District Council,15/10/2015,176741,1208495292,5,19.36,Orange Airtime,CR455799,One Leisure St Ives,Telephone &Mobile Phonecharges,240
http://statistics.data.gov.uk/id/local-authority/12UE,Huntingdonshire District Council,01/10/2015,175959,2102164796,5,351.94,Booker Cash And Carry,CR027611,One Leisure St Ives,Bar Provisions,558
http://statistics.data.gov.uk/id/local-authority/12UE,Huntingdonshire District Council,01/10/2015,175959,2102164796,5,108.96,Booker Cash And Carry,CR027611,One Leisure St Ives,Catering Materials,559
http://statistics.data.gov.uk/id/local-authority/12UE,Huntingdonshire District Council,01/10/2015,175959,2102164796,5,15.54,Booker Cash And Carry,CR027611,One Leisure St Ives,Materials,550
http://statistics.data.gov.uk/id/local-authority/12UE,Huntingdonshire District Council,08/10/2015,176120,2102175553,5,282.61,Booker Cash And Carry,CR027611,One Leisure St Ives,Bar Provisions,558
http://statistics.data.gov.uk/id/local-authority/12UE,Huntingdonshire District Council,08/10/2015,176120,2102175553,5,380.71,Booker Cash And Carry,CR027611,One Leisure St Ives,Catering Materials,559
http://statistics.data.gov.uk/id/local-authority/12UE,Huntingdonshire District Council,08/10/2015,176120,2102175553,5,48.53,Booker Cash And Carry,CR027611,One Leisure St Ives,Materials,550
http://statistics.data.gov.uk/id/local-authority/12UE,Huntingdonshire District Council,15/10/2015,176776,2102184191,5,14.28,Booker Cash And Carry,CR027611,One Leisure St Ives,Bar Provisions,558
http://statistics.data.gov.uk/id/local-authority/12UE,Huntingdonshire District Council,15/10/2015,176776,2102184191,5,574.87,Booker Cash And Carry,CR027611,One Leisure St Ives,Catering Materials,559
http://statistics.data.gov.uk/id/local-authority/12UE,Huntingdonshire District Council,29/10/2015,177704,2102205532,5,576.74,Booker Cash And Carry,CR027611,One Leisure St Ives,Bar Provisions,558
http://statistics.data.gov.uk/id/local-authority/12UE,Huntingdonshire District Council,29/10/2015,177704,2102205532,5,292.96,Booker Cash And Carry,CR027611,One Leisure St Ives,Catering Materials,559
http://statistics.data.gov.uk/id/local-authority/12UE,Huntingdonshire District Council,29/10/2015,177704,2102205532,5,100.19,Booker Cash And Carry,CR027611,One Leisure St Ives,Confectionery,572
http://statistics.data.gov.uk/id/local-authority/12UE,Huntingdonshire District Council,29/10/2015,177704,2102205532,5,121.98,Booker Cash And Carry,CR027611,One Leisure St Ives,Materials,550
http://statistics.data.gov.uk/id/local-authority/12UE,Huntingdonshire District Council,29/10/2015,178061,2102214868,5,594.68,Booker Cash And Carry,CR027611,One Leisure St Ives,Bar Provisions,558
http://statistics.data.gov.uk/id/local-authority/12UE,Huntingdonshire District Council,29/10/2015,178061,2102214868,5,648.4,Booker Cash And Carry,CR027611,One Leisure St Ives,Catering Materials,559
http://statistics.data.gov.uk/id/local-authority/12UE,Huntingdonshire District Council,29/10/2015,178061,2102214868,5,40.79,Booker Cash And Carry,CR027611,One Leisure St Ives,Confectionery,572
http://statistics.data.gov.uk/id/local-authority/12UE,Huntingdonshire District Council,29/10/2015,178061,2102214868,5,247.39,Booker Cash And Carry,CR027611,One Leisure St Ives,Materials,550
http://statistics.data.gov.uk/id/local-authority/12UE,Huntingdonshire District Council,15/10/2015,176362,6006503000,5,3958.89,Cambridge Water Plc,CR000172,One Leisure St Ives,Water & Sewerage,432
http://statistics.data.gov.uk/id/local-authority/12UE,Huntingdonshire District Council,29/10/2015,177147,7080514733,5,581.3,Honeywell Novar Systems,CR406826,One Leisure St Ives,Fire & Security,450
http://statistics.data.gov.uk/id/local-authority/12UE,Huntingdonshire District Council,15/10/2015,177454,12489089510,5,396.79,E-On Energy,CR416430,One Leisure St Ives,Gas,421
http://statistics.data.gov.uk/id/local-authority/12UE,Huntingdonshire District Council,15/10/2015,177457,12489090950,5,4921.4,E-On Energy,CR416430,One Leisure St Ives,Gas,421
http://statistics.data.gov.uk/id/local-authority/12UE,Huntingdonshire District Council,29/10/2015,178010,6204/WZ,5,500,Musicscope,CR423051,One Leisure St Ives,Licences,730
http://statistics.data.gov.uk/id/local-authority/12UE,Huntingdonshire District Council,01/10/2015,175536,742878104/0915,5,9.6,Virgin Media Business,CR033120,One Leisure St Ives,I T Line Rental,248
http://statistics.data.gov.uk/id/local-authority/12UE,Huntingdonshire District Council,01/10/2015,175536,742878104/0915,5,0.18,Virgin Media Business,CR033120,One Leisure St Ives,Telephone &Mobile Phonecharges,240
http://statistics.data.gov.uk/id/local-authority/12UE,Huntingdonshire District Council,29/10/2015,177699,742878104/1015,5,9.6,Virgin Media Business,CR033120,One Leisure St Ives,I T Line Rental,248
http://statistics.data.gov.uk/id/local-authority/12UE,Huntingdonshire District Council,29/10/2015,177699,742878104/1015,5,0.07,Virgin Media Business,CR033120,One Leisure St Ives,Telephone &Mobile Phonecharges,240
http://statistics.data.gov.uk/id/local-authority/12UE,Huntingdonshire District Council,01/10/2015,176712,APPROVED PREMIS,5,1650,Cambs County Council,CR089535,One Leisure St Ives,Licences,730
http://statistics.data.gov.uk/id/local-authority/12UE,Huntingdonshire District Council,01/10/2015,175613,CD970260839,5,655.49,Sherriff Amenity Services,CR416316,One Leisure St Ives,Grounds Mtce Contractors,351
http://statistics.data.gov.uk/id/local-authority/12UE,Huntingdonshire District Council,08/10/2015,176527,CD970263472,5,835.2,Sherriff Amenity Services,CR416316,One Leisure St Ives,Grounds Mtce Contractors,351
http://statistics.data.gov.uk/id/local-authority/12UE,Huntingdonshire District Council,15/10/2015,177054,CD970269460,5,910.08,Sherriff Amenity Services,CR416316,One Leisure St Ives,Grounds Mtce Contractors,351
http://statistics.data.gov.uk/id/local-authority/12UE,Huntingdonshire District Council,01/10/2015,175614,CD97060838,5,265.98,Sherriff Amenity Services,CR416316,One Leisure St Ives,Grounds Mtce Contractors,351
http://statistics.data.gov.uk/id/local-authority/12UE,Huntingdonshire District Council,22/10/2015,176772,GM12383,5,577.74,Garner Medical Ltd,CR003972,One Leisure St Ives,Equipment Maintenance,511
http://statistics.data.gov.uk/id/local-authority/12UE,Huntingdonshire District Council,08/10/2015,177047,INV001459,5,1250,Lynx Bowling Services,CR455532,One Leisure St Ives,Equipment Maintenance,511
http://statistics.data.gov.uk/id/local-authority/12UE,Huntingdonshire District Council,08/10/2015,177047,INV001459,5,1548,Lynx Bowling Services,CR455532,One Leisure St Ives,Plant & Equipment Maintenance,380
http://statistics.data.gov.uk/id/local-authority/12UE,Huntingdonshire District Council,15/10/2015,177466,INV-0086,5,1668.42,Bigday Catering,CR453802,One Leisure St Ives,Catering,710
http://statistics.data.gov.uk/id/local-authority/12UE,Huntingdonshire District Council,08/10/2015,175960,INV025527,5,276.66,Slush Puppie Ltd,CR455958,One Leisure St Ives,Catering Materials,559
http://statistics.data.gov.uk/id/local-authority/12UE,Huntingdonshire District Council,08/10/2015,175960,INV025527,5,45.5,Slush Puppie Ltd,CR455958,One Leisure St Ives,Materials,550
http://statistics.data.gov.uk/id/local-authority/12UE,Huntingdonshire District Council,22/10/2015,176831,INV027224,5,276.66,Slush Puppie Ltd,CR455958,One Leisure St Ives,Catering Materials,559
http://statistics.data.gov.uk/id/local-authority/12UE,Huntingdonshire District Council,22/10/2015,176831,INV027224,5,55.92,Slush Puppie Ltd,CR455958,One Leisure St Ives,Materials,550
http://statistics.data.gov.uk/id/local-authority/12UE,Huntingdonshire District Council,15/10/2015,177213,PI0010,5,390,Tiny Mite Music Uk Ltd,CR422666,One Leisure St Ives,Entertainments Inc Cable Tv,744
http://statistics.data.gov.uk/id/local-authority/12UE,Huntingdonshire District Council,01/10/2015,176780,SBO1024688,5,707.46,Veolia Es Uk Ltd,CR478889,One Leisure St Ives,Waste Disposal,763
http://statistics.data.gov.uk/id/local-authority/12UE,Huntingdonshire District Council,22/10/2015,177909,SBO1026694,5,923.12,Veolia Es Uk Ltd,CR478889,One Leisure St Ives,Waste Disposal,763
http://statistics.data.gov.uk/id/local-authority/12UE,Huntingdonshire District Council,29/10/2015,177100,SIN003408,5,2687.55,Enterprise Support Services Uk Ltd,CR422509,One Leisure St Ives,Building Cleaning,440
http://statistics.data.gov.uk/id/local-authority/12UE,Huntingdonshire District Council,15/10/2015,177051,SIN004877,5,6588,Replay Maintenance Ltd,CR422074,One Leisure St Ives,Grounds Mtce Contractors,351
http://statistics.data.gov.uk/id/local-authority/12UE,Huntingdonshire District Council,29/10/2015,177128,SIV081519,5,297.54,Les Mills Uk,CR025826,One Leisure St Ives,Licences,730
http://statistics.data.gov.uk/id/local-authority/12UE,Huntingdonshire District Council,15/10/2015,587923,585,6,1100,Ernulf Academy,CR023386,One Leisure St Neots,Training,130
http://statistics.data.gov.uk/id/local-authority/12UE,Huntingdonshire District Council,15/10/2015,177505,9456,5,358.27,Roger Wilson Electronics,CR028041,One Leisure St Neots,Building Mtce,303
http://statistics.data.gov.uk/id/local-authority/12UE,Huntingdonshire District Council,01/10/2015,175985,12631,5,1440,Roi Software Distribution Ltd,CR422116,One Leisure St Neots,Printing (External),220
http://statistics.data.gov.uk/id/local-authority/12UE,Huntingdonshire District Council,29/10/2015,177644,13121,5,468.72,Jade Security Services Ltd,CR422256,One Leisure St Neots,Cash Collection,702
http://statistics.data.gov.uk/id/local-authority/12UE,Huntingdonshire District Council,22/10/2015,177237,17702,5,504,Warboys Services Ltd,CR000841,One Leisure St Neots,Equipment Maintenance,511
http://statistics.data.gov.uk/id/local-authority/12UE,Huntingdonshire District Council,29/10/2015,177041,22968,5,396,Sterling Hydrotech Ltd,CR422914,One Leisure St Neots,Plant & Equipment Maintenance,380
http://statistics.data.gov.uk/id/local-authority/12UE,Huntingdonshire District Council,01/10/2015,176018,38248,5,276,Clanpress King'S Lynn Ltd,CR413516,One Leisure St Neots,Printing (External),220
http://statistics.data.gov.uk/id/local-authority/12UE,Huntingdonshire District Council,15/10/2015,176394,53932,5,617.23,Maskearaid Ind Supplies,CR033423,One Leisure St Neots,Cleaning Materials,443
http://statistics.data.gov.uk/id/local-authority/12UE,Huntingdonshire District Council,22/10/2015,176777,53987,5,270.65,Maskearaid Ind Supplies,CR033423,One Leisure St Neots,Cleaning Materials,443
http://statistics.data.gov.uk/id/local-authority/12UE,Huntingdonshire District Council,08/10/2015,176286,60322,5,642.35,Snackline Direct Ltd,CR478090,One Leisure St Neots,Vending Materials,560
http://statistics.data.gov.uk/id/local-authority/12UE,Huntingdonshire District Council,01/10/2015,176891,61456,5,144,Clubnet Limited,CR422543,One Leisure St Neots,Advertising/Promoting Services,255
http://statistics.data.gov.uk/id/local-authority/12UE,Huntingdonshire District Council,15/10/2015,177291,65914,5,8356.79,Haven Power Ltd,CR455940,One Leisure St Neots,Electricity,420
http://statistics.data.gov.uk/id/local-authority/12UE,Huntingdonshire District Council,01/10/2015,175992,73917,5,2950.3,Servicesport (Uk) Ltd,CR422867,One Leisure St Neots,Equipment Maintenance,511
http://statistics.data.gov.uk/id/local-authority/12UE,Huntingdonshire District Council,22/10/2015,177133,74483,5,2206.63,Servicesport (Uk) Ltd,CR422867,One Leisure St Neots,Equipment Maintenance,511
http://statistics.data.gov.uk/id/local-authority/12UE,Huntingdonshire District Council,29/10/2015,177938,74897,5,1194,Servicesport (Uk) Ltd,CR422867,One Leisure St Neots,Equipment Maintenance,511
http://statistics.data.gov.uk/id/local-authority/12UE,Huntingdonshire District Council,15/10/2015,175983,75594,5,804,Gladstone Mrm,CR405717,One Leisure St Neots,Software,206
http://statistics.data.gov.uk/id/local-authority/12UE,Huntingdonshire District Council,15/10/2015,176386,78591,5,778.8,Jsa Leisure Ltd,CR40187,One Leisure St Neots,Plant & Equipment Maintenance,380
http://statistics.data.gov.uk/id/local-authority/12UE,Huntingdonshire District Council,22/10/2015,177480,78639,5,1420.8,Jsa Leisure Ltd,CR40187,One Leisure St Neots,Plant & Equipment Maintenance,380
http://statistics.data.gov.uk/id/local-authority/12UE,Huntingdonshire District Council,08/10/2015,175971,323313,5,276.41,Thurlow Nunn Standen Ltd,CR001534,One Leisure St Neots,Equipment Maintenance,511
http://statistics.data.gov.uk/id/local-authority/12UE,Huntingdonshire District Council,29/10/2015,177667,376691,5,321.36,Mplc,CR411190,One Leisure St Neots,Licences,730
http://statistics.data.gov.uk/id/local-authority/12UE,Huntingdonshire District Council,08/10/2015,176686,393398,5,60.24,South Lincs Food Service,CR033415,One Leisure St Neots,Bar Provisions,558
http://statistics.data.gov.uk/id/local-authority/12UE,Huntingdonshire District Council,08/10/2015,176686,393398,5,275.32,South Lincs Food Service,CR033415,One Leisure St Neots,Catering Materials,559
http://statistics.data.gov.uk/id/local-authority/12UE,Huntingdonshire District Council,08/10/2015,176295,773409,5,397.62,J P Lennard Ltd,CR028595,One Leisure St Neots,Sports Equipment,524
http://statistics.data.gov.uk/id/local-authority/12UE,Huntingdonshire District Council,15/10/2015,176678,773900,5,837.86,J P Lennard Ltd,CR028595,One Leisure St Neots,Sports Equipment,524
http://statistics.data.gov.uk/id/local-authority/12UE,Huntingdonshire District Council,15/10/2015,176677,774533,5,574.96,J P Lennard Ltd,CR028595,One Leisure St Neots,Sports Equipment,524
http://statistics.data.gov.uk/id/local-authority/12UE,Huntingdonshire District Council,29/10/2015,177235,776177,5,345.48,J P Lennard Ltd,CR028595,One Leisure St Neots,Sports Equipment,524
http://statistics.data.gov.uk/id/local-authority/12UE,Huntingdonshire District Council,15/10/2015,177499,910378,5,494.94,Cmuk Visual Safety Ltd,CR405024,One Leisure St Neots,Materials,550
http://statistics.data.gov.uk/id/local-authority/12UE,Huntingdonshire District Council,22/10/2015,176514,3070740,5,367.88,First In Service Ltd,CR422285,One Leisure St Neots,Plant & Equipment Maintenance,380
http://statistics.data.gov.uk/id/local-authority/12UE,Huntingdonshire District Council,08/10/2015,175969,10096323,5,415.02,Lucozade Ribena Suntory Ltd,CR422660,One Leisure St Neots,Vending Materials,560
http://statistics.data.gov.uk/id/local-authority/12UE,Huntingdonshire District Council,29/10/2015,178034,15011838,5,1447.2,Technogym Uk Ltd,CR033037,One Leisure St Neots,Equipment,500
http://statistics.data.gov.uk/id/local-authority/12UE,Huntingdonshire District Council,01/10/2015,176379,55279569,5,354,Archant Herts & Cambs,CR415764,One Leisure St Neots,Advertising/Promoting Services,255
http://statistics.data.gov.uk/id/local-authority/12UE,Huntingdonshire District Council,08/10/2015,175999,62909357,5,675.77,Phs Group Ltd,CR032018,One Leisure St Neots,Equipment Hire,507
http://statistics.data.gov.uk/id/local-authority/12UE,Huntingdonshire District Council,22/10/2015,176705,92074782,5,252.96,Speedo International Limited,CR41427,One Leisure St Neots,Materials For Resale,570
http://statistics.data.gov.uk/id/local-authority/12UE,Huntingdonshire District Council,01/10/2015,176696,124032665,5,1485.1,Anglian Water,CR000071,One Leisure St Neots,Water & Sewerage,432
http://statistics.data.gov.uk/id/local-authority/12UE,Huntingdonshire District Council,15/10/2015,176741,1208495292,5,9.6,Orange Airtime,CR455799,One Leisure St Neots,Telephone &Mobile Phonecharges,240
http://statistics.data.gov.uk/id/local-authority/12UE,Huntingdonshire District Council,15/10/2015,177450,12489088380,5,3704.77,E-On Energy,CR416430,One Leisure St Neots,Gas,421
http://statistics.data.gov.uk/id/local-authority/12UE,Huntingdonshire District Council,15/10/2015,177451,12489088540,5,305.9,E-On Energy,CR416430,One Leisure St Neots,Gas,421
http://statistics.data.gov.uk/id/local-authority/12UE,Huntingdonshire District Council,15/10/2015,176398,44SI 4406343,5,878.52,Brenntag Uk Ltd,CR015017,One Leisure St Neots,Chemicals,551
http://statistics.data.gov.uk/id/local-authority/12UE,Huntingdonshire District Council,15/10/2015,177659,9550DC,5,3023.02,Asp,CR455201,One Leisure St Neots,Software,206
http://statistics.data.gov.uk/id/local-authority/12UE,Huntingdonshire District Council,01/10/2015,176522,9658DC,5,579.61,Asp,CR455201,One Leisure St Neots,Equipment Maintenance,511
http://statistics.data.gov.uk/id/local-authority/12UE,Huntingdonshire District Council,15/10/2015,175465,JBC/27300/4663/,5,2137.97,J Breheny Contractors Ltd,CR000314,One Leisure St Neots,Building Mtce,303
http://statistics.data.gov.uk/id/local-authority/12UE,Huntingdonshire District Council,08/10/2015,176782,SBO1024690,5,292.36,Veolia Es Uk Ltd,CR478889,One Leisure St Neots,Waste Disposal,763
http://statistics.data.gov.uk/id/local-authority/12UE,Huntingdonshire District Council,29/10/2015,177100,SIN003408,5,1307.12,Enterprise Support Services Uk Ltd,CR422509,One Leisure St Neots,Building Cleaning,440
http://statistics.data.gov.uk/id/local-authority/12UE,Huntingdonshire District Council,22/10/2015,178017,5064434,5,36565.24,Certas Energy T/A Pace Fuelcare,CR455975,Operations Mgt Units,Diesel From Stock,W12
http://statistics.data.gov.uk/id/local-authority/12UE,Huntingdonshire District Council,29/10/2015,178007,10918674,5,88.56,Euramka Promotions Ltd,CR001864,Operations Mgt Units,Diesel,615
http://statistics.data.gov.uk/id/local-authority/12UE,Huntingdonshire District Council,15/10/2015,177576,300106720,5,312,Freight Transport Association,CR003104,Operations Mgt Units,Licences,730
http://statistics.data.gov.uk/id/local-authority/12UE,Huntingdonshire District Council,15/10/2015,176741,1208495292,5,170.38,Orange Airtime,CR455799,Operations Mgt Units,Telephone &Mobile Phonecharges,240
http://statistics.data.gov.uk/id/local-authority/12UE,Huntingdonshire District Council,08/10/2015,177299,INV02345,5,340.6,Snacktime Vmi,CR482479,Operations Mgt Units,Service Charges,412
http://statistics.data.gov.uk/id/local-authority/12UE,Huntingdonshire District Council,15/10/2015,177303,INV02837,5,340.6,Snacktime Vmi,CR482479,Operations Mgt Units,Service Charges,412
http://statistics.data.gov.uk/id/local-authority/12UE,Huntingdonshire District Council,15/10/2015,177615,2076,5,1800,Rynat Limited,CR454003,Parks & Open Spaces,Playground Equipment,360
http://statistics.data.gov.uk/id/local-authority/12UE,Huntingdonshire District Council,15/10/2015,177622,16345,5,1062,Soft Surfaces,CR415861,Parks & Open Spaces,Playground Equipment,360
http://statistics.data.gov.uk/id/local-authority/12UE,Huntingdonshire District Council,15/10/2015,176462,2013135,5,690,Highline Extreme (Oz-Uk)Ltd,CR477379,Parks & Open Spaces,Playground Equipment,360
http://statistics.data.gov.uk/id/local-authority/12UE,Huntingdonshire District Council,15/10/2015,176462,2013135,5,720,Highline Extreme (Oz-Uk)Ltd,CR477379,Parks & Open Spaces,Playground Equipment,360
http://statistics.data.gov.uk/id/local-authority/12UE,Huntingdonshire District Council,29/10/2015,178097,GFL1749HDC,5,264,G Ferrara Ltd,CR478949,Parks & Open Spaces,Building Mtce,303
http://statistics.data.gov.uk/id/local-authority/12UE,Huntingdonshire District Council,15/10/2015,175462,JBC/27297/4663/,5,274.75,J Breheny Contractors Ltd,CR000314,Parks & Open Spaces,Sitework,359
http://statistics.data.gov.uk/id/local-authority/12UE,Huntingdonshire District Council,15/10/2015,175464,JBC/27299/4663/,5,1936.8,J Breheny Contractors Ltd,CR000314,Parks & Open Spaces,Sitework,359
http://statistics.data.gov.uk/id/local-authority/12UE,Huntingdonshire District Council,08/10/2015,175881,SI218419,5,345.64,Kompan Ltd,CR405497,Parks & Open Spaces,Playground Equipment,360
http://statistics.data.gov.uk/id/local-authority/12UE,Huntingdonshire District Council,01/10/2015,176736,12411,5,8047.2,Innovations Visual Communication Systems Ltd,CR422257,Pathfinder House Site,Building Mtce,303
http://statistics.data.gov.uk/id/local-authority/12UE,Huntingdonshire District Council,22/10/2015,176737,12432,5,2182.8,Innovations Visual Communication Systems Ltd,CR422257,Pathfinder House Site,Building Mtce,303
http://statistics.data.gov.uk/id/local-authority/12UE,Huntingdonshire District Council,22/10/2015,176738,12436,5,1254,Innovations Visual Communication Systems Ltd,CR422257,Pathfinder House Site,Building Mtce,303
http://statistics.data.gov.uk/id/local-authority/12UE,Huntingdonshire District Council,22/10/2015,176748,38483,5,342,Dal-Rod (Camridgeshire),CR413675,Pathfinder House Site,Building Mtce,303
http://statistics.data.gov.uk/id/local-authority/12UE,Huntingdonshire District Council,22/10/2015,176785,53999,5,650.88,Maskearaid Ind Supplies,CR033423,Pathfinder House Site,Cleaning Materials,443
http://statistics.data.gov.uk/id/local-authority/12UE,Huntingdonshire District Council,15/10/2015,177293,65912,5,8970.25,Haven Power Ltd,CR455940,Pathfinder House Site,Electricity,420
http://statistics.data.gov.uk/id/local-authority/12UE,Huntingdonshire District Council,15/10/2015,176746,5131804,5,366.94,Integrated Water Services Ltd,CR452140,Pathfinder House Site,Water & Sewerage,432
http://statistics.data.gov.uk/id/local-authority/12UE,Huntingdonshire District Council,22/10/2015,177744,134364421,5,1340.23,Anglian Water,CR000071,Pathfinder House Site,Water & Sewerage,432
http://statistics.data.gov.uk/id/local-authority/12UE,Huntingdonshire District Council,15/10/2015,176741,1208495292,5,7.25,Orange Airtime,CR455799,Pathfinder House Site,Telephone &Mobile Phonecharges,240
http://statistics.data.gov.uk/id/local-authority/12UE,Huntingdonshire District Council,29/10/2015,177714,4220066172,5,680.05,Andrew Sykes  Hire Ltd,CR480059,Pathfinder House Site,Building Mtce,303
http://statistics.data.gov.uk/id/local-authority/12UE,Huntingdonshire District Council,15/10/2015,177458,13313569100,5,681.58,E-On Energy,CR416430,Pathfinder House Site,Gas,421
http://statistics.data.gov.uk/id/local-authority/12UE,Huntingdonshire District Council,01/10/2015,175780,2033609A,5,1832.34,Glassolutions Installation,CR455591,Pathfinder House Site,Building Mtce,303
http://statistics.data.gov.uk/id/local-authority/12UE,Huntingdonshire District Council,15/10/2015,175474,JBC/27305/4663/,5,3105.44,J Breheny Contractors Ltd,CR000314,Pathfinder House Site,Building Mtce,303
http://statistics.data.gov.uk/id/local-authority/12UE,Huntingdonshire District Council,29/10/2015,177100,SIN003408,5,3296.9,Enterprise Support Services Uk Ltd,CR422509,Pathfinder House Site,Building Cleaning,440
http://statistics.data.gov.uk/id/local-authority/12UE,Huntingdonshire District Council,08/10/2015,175832,67467,5,264,Warren Access Hire And Training,CR422771,Phoenix Roof Replacement,Equipment Hire,507
http://statistics.data.gov.uk/id/local-authority/12UE,Huntingdonshire District Council,22/10/2015,177238,50036407,5,3180,Haymarket Media Group,CR479500,Planning M U'S,Recruitment - Advertising,120
http://statistics.data.gov.uk/id/local-authority/12UE,Huntingdonshire District Council,15/10/2015,176741,1208495292,5,81.6,Orange Airtime,CR455799,Planning M U'S,Telephone &Mobile Phonecharges,240
http://statistics.data.gov.uk/id/local-authority/12UE,Huntingdonshire District Council,15/10/2015,176521,OP/I761124,5,597.46,Phoenix Software Ltd,CR031918,Planning M U'S,Software,206
http://statistics.data.gov.uk/id/local-authority/12UE,Huntingdonshire District Council,22/10/2015,176740,1111232036,5,11176.8,Deloitte Llp,CR400573,Project Contributions,Subcontractors,777
http://statistics.data.gov.uk/id/local-authority/12UE,Huntingdonshire District Council,15/10/2015,176741,1208495292,5,9.59,Orange Airtime,CR455799,Property Development And Mgt,Telephone &Mobile Phonecharges,240
http://statistics.data.gov.uk/id/local-authority/12UE,Huntingdonshire District Council,22/10/2015,176751,4884,5,362.64,Wallgate Limited,CR478363,Public Conveniences,Building Mtce,303
http://statistics.data.gov.uk/id/local-authority/12UE,Huntingdonshire District Council,01/10/2015,175471,01-Sep-15,5,671.27,Ecocleen Services Limited,CR406985,Public Conveniences,Building Cleaning,440
http://statistics.data.gov.uk/id/local-authority/12UE,Huntingdonshire District Council,01/10/2015,175468,542804,5,1047.54,Ecocleen Services Limited,CR406985,Public Conveniences,Building Cleaning,440
http://statistics.data.gov.uk/id/local-authority/12UE,Huntingdonshire District Council,29/10/2015,177678,543414,5,671.27,Ecocleen Services Limited,CR406985,Public Conveniences,Building Cleaning,440
http://statistics.data.gov.uk/id/local-authority/12UE,Huntingdonshire District Council,29/10/2015,177679,543524,5,1047.54,Ecocleen Services Limited,CR406985,Public Conveniences,Building Cleaning,440
http://statistics.data.gov.uk/id/local-authority/12UE,Huntingdonshire District Council,15/10/2015,176741,1208495292,5,9.6,Orange Airtime,CR455799,Ramsey Neighbourhood,Telephone &Mobile Phonecharges,240
http://statistics.data.gov.uk/id/local-authority/12UE,Huntingdonshire District Council,08/10/2015,175854,9757,5,510.31,D B Transport Services,CR405028,Recycling,Vehicle Parts & Fittings,625
http://statistics.data.gov.uk/id/local-authority/12UE,Huntingdonshire District Council,22/10/2015,177614,39410,5,1634.8,E Rand And Sons,CR405746,Recycling,Vehicle Maintenance External,619
http://statistics.data.gov.uk/id/local-authority/12UE,Huntingdonshire District Council,29/10/2015,177988,80656,5,1123.11,Bandvulc Truck Tyres,CR406810,Recycling,Tyres,630
http://statistics.data.gov.uk/id/local-authority/12UE,Huntingdonshire District Council,08/10/2015,177186,82060,5,692.4,Frank Ratcliffe & Son,CR007546,Recycling,Vehicle Maintenance External,619
http://statistics.data.gov.uk/id/local-authority/12UE,Huntingdonshire District Council,15/10/2015,177187,82142,5,385.2,Frank Ratcliffe & Son,CR007546,Recycling,Vehicle Maintenance External,619
http://statistics.data.gov.uk/id/local-authority/12UE,Huntingdonshire District Council,15/10/2015,177194,91600,5,326.16,Red Forge Ltd,CR405690,Recycling,Vehicle Maintenance External,619
http://statistics.data.gov.uk/id/local-authority/12UE,Huntingdonshire District Council,15/10/2015,177618,128367,5,348,Silver Shield Windscreens,CR024745,Recycling,Vehicle Parts & Fittings,625
http://statistics.data.gov.uk/id/local-authority/12UE,Huntingdonshire District Council,29/10/2015,177557,175592,5,126,Barton Petroleum,CR409205,Recycling,Vehicle Oil & Lubricants,626
http://statistics.data.gov.uk/id/local-authority/12UE,Huntingdonshire District Council,22/10/2015,177151,268603,5,2456.24,Dennis Eagle Ltd,CR000200,Recycling,Vehicle Parts & Fittings,625
http://statistics.data.gov.uk/id/local-authority/12UE,Huntingdonshire District Council,01/10/2015,175884,96316442,5,385.29,Terberg Matec Uk Ltd,CR402183,Recycling,Vehicle Parts & Fittings,625
http://statistics.data.gov.uk/id/local-authority/12UE,Huntingdonshire District Council,08/10/2015,176451,DE10896360,5,518.2,Dennis Eagle Ltd,CR000200,Recycling,Vehicle Parts & Fittings,625
http://statistics.data.gov.uk/id/local-authority/12UE,Huntingdonshire District Council,08/10/2015,176818,IN0462061,5,2389.64,Staffline Group,CR416827,Recycling,Hired Staff,100
http://statistics.data.gov.uk/id/local-authority/12UE,Huntingdonshire District Council,15/10/2015,176825,IN0463793,5,2580.46,Staffline Group,CR416827,Recycling,Hired Staff,100
http://statistics.data.gov.uk/id/local-authority/12UE,Huntingdonshire District Council,15/10/2015,177624,IN0464858,5,3031.52,Staffline Group,CR416827,Recycling,Hired Staff,100
http://statistics.data.gov.uk/id/local-authority/12UE,Huntingdonshire District Council,22/10/2015,177630,IN0466195,5,2930.92,Staffline Group,CR416827,Recycling,Hired Staff,100
http://statistics.data.gov.uk/id/local-authority/12UE,Huntingdonshire District Council,15/10/2015,177036,102025,5,689.6,Brookes,CR422866,Restaurant,Catering,710
http://statistics.data.gov.uk/id/local-authority/12UE,Huntingdonshire District Council,22/10/2015,177925,102026,5,382.5,Brookes,CR422866,Restaurant,Catering,710
http://statistics.data.gov.uk/id/local-authority/12UE,Huntingdonshire District Council,29/10/2015,176872,8475.028,5,928.65,Sarfo Solicitors,CR415973,Revenue Services Mus,Legal Fees,729
http://statistics.data.gov.uk/id/local-authority/12UE,Huntingdonshire District Council,01/10/2015,176838,630205,5,164.4,Callcredit Ltd,CR455548,Revenue Services Mus,Enquiries,723
http://statistics.data.gov.uk/id/local-authority/12UE,Huntingdonshire District Council,29/10/2015,177086,633437,5,234,Callcredit Ltd,CR455548,Revenue Services Mus,Enquiries,723
http://statistics.data.gov.uk/id/local-authority/12UE,Huntingdonshire District Council,15/10/2015,176741,1208495292,5,12,Orange Airtime,CR455799,Revenue Services Mus,Telephone &Mobile Phonecharges,240
http://statistics.data.gov.uk/id/local-authority/12UE,Huntingdonshire District Council,08/10/2015,177252,923469-057B,5,16030.8,Virgin Media Business/Cpsn,CR455148,Software Capital,Network Hardware,205
http://statistics.data.gov.uk/id/local-authority/12UE,Huntingdonshire District Council,08/10/2015,175877,13334,5,360,Ian'S Tyre & Exhaust Centre,CR405836,Street Cleaning,Tyres,630
http://statistics.data.gov.uk/id/local-authority/12UE,Huntingdonshire District Council,15/10/2015,177309,30881,5,382.8,Magnum Tyres Ltd,CR479195,Street Cleaning,Tyres,630
http://statistics.data.gov.uk/id/local-authority/12UE,Huntingdonshire District Council,29/10/2015,178007,10918674,5,55.49,Euramka Promotions Ltd,CR001864,Street Cleaning,Diesel,615
http://statistics.data.gov.uk/id/local-authority/12UE,Huntingdonshire District Council,15/10/2015,177173,59447702,5,2249.69,Marshall Motor Group,CR009641,Street Cleaning,Vehicle Parts & Fittings,625
http://statistics.data.gov.uk/id/local-authority/12UE,Huntingdonshire District Council,15/10/2015,177161,61310521,5,1830,Johnston Engineering Ltd,CR029831,Street Cleaning,Vehicle Parts & Fittings,625
http://statistics.data.gov.uk/id/local-authority/12UE,Huntingdonshire District Council,22/10/2015,177585,61311753,5,297.92,Johnston Engineering Ltd,CR029831,Street Cleaning,Vehicle Parts & Fittings,625
http://statistics.data.gov.uk/id/local-authority/12UE,Huntingdonshire District Council,15/10/2015,176741,1208495292,5,2.4,Orange Airtime,CR455799,Street Cleaning,Telephone &Mobile Phonecharges,240
http://statistics.data.gov.uk/id/local-authority/12UE,Huntingdonshire District Council,08/10/2015,176820,IN0462065,5,590.4,Staffline Group,CR416827,Street Cleaning,Hired Staff,100
http://statistics.data.gov.uk/id/local-authority/12UE,Huntingdonshire District Council,15/10/2015,176828,IN0463797,5,599.04,Staffline Group,CR416827,Street Cleaning,Hired Staff,100
http://statistics.data.gov.uk/id/local-authority/12UE,Huntingdonshire District Council,15/10/2015,176829,IN0463798,5,684.53,Staffline Group,CR416827,Street Cleaning,Hired Staff,100
http://statistics.data.gov.uk/id/local-authority/12UE,Huntingdonshire District Council,15/10/2015,177626,IN0464862,5,599.04,Staffline Group,CR416827,Street Cleaning,Hired Staff,100
http://statistics.data.gov.uk/id/local-authority/12UE,Huntingdonshire District Council,15/10/2015,177627,IN0464863,5,289.61,Staffline Group,CR416827,Street Cleaning,Hired Staff,100
http://statistics.data.gov.uk/id/local-authority/12UE,Huntingdonshire District Council,22/10/2015,177633,IN0466199,5,679.68,Staffline Group,CR416827,Street Cleaning,Hired Staff,100
http://statistics.data.gov.uk/id/local-authority/12UE,Huntingdonshire District Council,22/10/2015,177634,IN0466200,5,684.53,Staffline Group,CR416827,Street Cleaning,Hired Staff,100
http://statistics.data.gov.uk/id/local-authority/12UE,Huntingdonshire District Council,08/10/2015,175912,JBC/27293/4663/,5,1013.27,Breheny Contractors Ltd,CR027653,Street Cleaning,Litter Bins,520
http://statistics.data.gov.uk/id/local-authority/12UE,Huntingdonshire District Council,22/10/2015,176843,IN16PS15006089,5,13.42,Whistl,CR479965,Trade Refuse,Postage,231
http://statistics.data.gov.uk/id/local-authority/12UE,Huntingdonshire District Council,15/10/2015,177616,572,5,12500,Hact,CR455657,Transportation Mgt,Contribution (Paid Out),810
http://statistics.data.gov.uk/id/local-authority/12UE,Huntingdonshire District Council,29/10/2015,177289,66,5,2550.6,R J Tree Services Ltd,CR422081,Trees,Consultants,711
http://statistics.data.gov.uk/id/local-authority/12UE,Huntingdonshire District Council,22/10/2015,587541,124531,5,763.2,Green-Tech,CR401735,Trees,Trees/Shrubs,555
http://statistics.data.gov.uk/id/local-authority/12UE,Huntingdonshire District Council,22/10/2015,587542,124613,5,1548,Green-Tech,CR401735,Trees,Trees/Shrubs,555
http://statistics.data.gov.uk/id/local-authority/12UE,Huntingdonshire District Council,29/10/2015,177171,5684,5,2520,Lattenbury Services,CR406847,Watercourses,Sitework,359
http://statistics.data.gov.uk/id/local-authority/12UE,Huntingdonshire District Council,01/10/2015,175599,18225,5,828,Sps Pumps & Engineering Ltd,CR401392,Watercourses,Sitework,359
http://statistics.data.gov.uk/id/local-authority/12UE,Huntingdonshire District Council,15/10/2015,175456,JBC/27295/4663/,5,816.59,J Breheny Contractors Ltd,CR000314,Watercourses,Sitework,359
